{"text_format":"1","workbook":"xlsx","n_sheets":44,"sheets":["Lizenz","Start","Kontenplan","Lieferungen","igL","WL","Drittex","igE","Versandhandel","Rechnung","Re igL","VO igL","VO Nfz","AuswahlOrt","Hilfe A","Unternehmer","Laenderliste","U2","U3","VO3a16","Loesung U","Hilfe U","Privatperson","P2","P3","Loesung P","Hilfe P","§ 3a UStG alt","§ 3a UStG ab 2010","Reversecharge","Par 19 Abs 1","Par 19 Abs 1 alt","Par 6","Par 7","Par 8","Art 1","Art 7","Par 23","Par 13b dUStG","Kundenstock","Beispiele","Archivierung","ERechnung","Eintritt2"],"not_rendered":{"charts":0,"images":2,"macros":1,"external_links":1,"defined_names":71,"comments":0,"pivot_tables":0},"unopened":[],"bounds":{"document_bytes":16777216,"sheet_cells":100000,"rows_first":2000,"rows_last":500,"rows_between":2000,"halvings":0,"cell_chars":16384,"cell_head_chars":4096},"cells_cut":0,"cells_raw":0,"read":"whole","date_system":"1900"}

{"sheet":"Lizenz","index":0,"n_rows":2,"n_cols":2,"rows_kept":2,"cut":false,"hidden":true,"merged":[]}
["Lizenzbedingungen akzeptiert am:","2013-10-15T23:45:49"]
[{"$f":"NOW()","v":"2019-03-06T13:23:44.500"}]

{"sheet":"Start","index":1,"n_rows":26,"n_cols":5,"rows_kept":26,"cut":false,"hidden":false,"merged":[]}
[null,0]
[null,null,"UMSATZSTEUER spezial",null,{"$f":"CHAR(169)&\" KOLLTAX Software GmbH\"","v":"© KOLLTAX Software GmbH"}]
[null,null,null,null,"Stand 1.1.2019. Alle Angaben ohne Gewähr"]
[null,null,null,null,"Einzelplatzlizenz für:"]
[null,null,"Bitte auswählen durch Anklicken:",null,"Eingeschränkte Gratis - DEMOVERSION"]
[]
[]
[]
[]
[]
[]
[null,null,"Begriff:","Begriff:","Begriff:"]
[null,null,"Verschaffung der Verfügungs-\nmacht (Übertragung des wirtschaft-\nlichen Eigentums, meist Verkauf) \nüber einen Gegenstand","Be- oder Verarbeitung eines \nvom Auftraggeber beigestellten \nGegenstandes unter Verwendung \nvon Hauptstoffen","Alle Leistungen, die nicht in \neiner Lieferung bestehen,\neinschließlich Werkleistungen"]
[]
[null,null,"Rechtsquellen:","Rechtsquellen:","Rechtsquellen:"]
[null,null,"§ 3 UStG, Rz 342-474f UStR","§ 3 Abs 4 UStG, Rz 391-393 UStR","§ 3a UStG, Rz 475-642z UStR"]
[null,null,"Art 3 UStG, Rz 3714-3778 UStR",null,"Art 3a UStG, Rz 3806-3917d UStR"]
[]
[]
[null,null,"Beispiele:","Beispiele:","Beispiele:"]
[]
[null,null,"Verkauf von ...","Errichtung eines Bauwerkes","Dienstleistungen (aktives Tun)"]
[null,null,"körperlichen Gegenständen","Installationen in ein Gebäude","Dulden (z.B. Vermietung, Kredit-"]
[null,null,"bewegl. Sachen, Grundstücken, Tieren","Kfz-Reparatur, wenn Entgelt für","gewährung, Lizenzverträge)"]
[null,null,"Gas, Strom, Wärme, Dampf","Teile überwiegt (Rz 1067 UStR)","Unterlassen (z.B. Verzicht,"]
[null,null,null,"Binden von Büchern","ein Recht auszuüben)"]

{"sheet":"Kontenplan","index":2,"n_rows":60,"n_cols":8,"rows_kept":60,"cut":false,"hidden":false,"merged":[]}
[null,"Kontenplan individuell"]
[]
[null,"Erlöskonten"]
[]
[null,"Kntonr","Bezeichnung","Lieferung / so.L","USt %","Skonto","UVA Kz.","ZM"]
[1,4120,"Erlöse 20% (sonstige Leistung)","sonstige L",20,4452,22]
[2,4110,"Erlöse 10% (sonstige Leistung)","sonstige L",10,4451,29]
[3,4150,"Ausfuhrlieferungen Drittland 0%","Lieferung",0,4405,11]
[4,4140,"Lohnveredelung 0%","sonstige L",0,null,12]
[5,4140,"Echt steuerfrei § 6 Abs 1 Z 2 bis 6","sonstige L",0,4440,15]
[6,null,"Grundstücksumsätze 0%","Lieferung",0,null,19]
[7,null,"Kleinunternehmer 0%","neutral",0,null,16]
[8,4140,"übrige unecht befreite 0%","neutral",0,4440,20]
[9,4190,"Bauleistungen 0% (Reverse Charge)","neutral",0,4490,21]
[12,4000,"innergem. Lieferung 0%","Lieferung",0,4455,17,"ZM"]
[13,4700,"Dreiecksgeschäft (Erwerber)","Lieferung",0,4458,77,"ZM"]
[14,null,"grenzüberschr. Dienstl. echt steuerbefreit","sonstige L",0,null,11]
[15,4100,"grenzüberschr. Dienstl. nicht steuerbar","sonstige L",0,4454," ---"]
[16,4101,"sonstige Leistung EU (Generalklausel)","sonstige L",0,null," ---","ZM"]
[17,4102,"sonstige Leistung EU (Sonderregelung)","sonstige L",0,null," ---"]
[18,4105,"igL Neufahrzeuge an Private (Art 6/1)","Lieferung",0,"n.verg.",18]
[19,4600,"Umsatz stpfl. in anderem EU-Land","neutral",0,4601," ---"]
[20,4810,"Küche 10%","sonstige L",10,null,29]
[21,4820,"Küche 20%","sonstige L",20,null,22]
[22,null,"Beherbergung (Gastronomie)","sonstige L",10,null,29]
[23,4612,"Anlagenverkauf 20%","Lieferung",20,null,22]
[24,null,"Anlagenverkauf Ausland 0%","Lieferung",0]
[25,4600,"Anlagenverkauf igL","Lieferung",0,null,17,"ZM"]
[26,4920,"so. betriebl.Erträge 20%","neutral",20,null,22]
[27,4910,"so. betriebl.Erträge 10%","neutral",10,null,29]
[28,4900,"so. betriebl.Erträge 0%","neutral",0,null,20]
[29,null,"so. betriebl. Erträge nicht steuerbar","neutral"," ---",null," ---"]
[30,4821,"Provisionen 20%","sonstige L",20,null,22]
[31,null,"Provisionen 0%","sonstige L",0,null,20]
[32,4822,"Miet- und Pacht 20%","sonstige L",20,null,22]
[33,4811,"Miet- und Pacht 10%","sonstige L",10,null,29]
[34,null,"Miet- und Pacht 0%","sonstige L",0,null,20]
[]
[]
[]
[null,"Aufwandskonten"]
[]
[1,5100,"ig. Erwerb 0%",null,null,5810,71]
[2,5110,"ig. Erwerb 10%",null,null,5811,73]
[3,5120,"ig. Erwerb 20%",null,null,5812,72]
[4,5755,"sonstige Leistung RC",null,null,null,57]
[5,5756,"sonstige Leistung kein RC",null,null,null,"---"]
[6,5760,"sonstige Leistungen Ausland",null,null,null,"---"]
[7,null,null,null,null,null,"---"]
[8,5770,"Bauleistung (RC)",null,null,null,48]
[9,7200,"Instandhaltung"]
[10,7300,"Transporte durch Dritte"]
[11,7340,"Reisespesen"]
[12,7400,"Mietaufwand"]
[13,7450,"Leasing PKW, LKW"]
[14,7540,"Provisionen an Dritte"]
[15,7652,"Messen und Ausstellungen"]
[16,"diverse","diverse Aufwandskonten"]
[17]
[18]

{"sheet":"Lieferungen","index":3,"n_rows":30,"n_cols":5,"rows_kept":30,"cut":false,"hidden":false,"merged":[[1,2,1,4]]}
[]
[null,null,"Lieferungen"]
[]
[null,null,"innerhalb Österreichs","in anderen EU-Staat","ins Drittland"]
[]
[null,null,"an Unternehmer","an Unternehmer","an Unternehmer"]
[]
[null,null,"Rechnungspflicht bei Umsätzen","Innergemeinschaftliche Lieferung","Drittlandsexport"]
[null,null,"an Unternehmer oder jur. Personen","(steuerfrei gem. Art 7 UStG)","(steuerfrei gem. § 7 UStG)"]
[]
[]
[]
[]
[]
[null,null,null,"Kunde ist Schwellenerwerber"]
[null,null,null,"(ohne Verzicht auf Erwerbsschwelle):"]
[null,null,null,"Versandhandelsregelung beachten"]
[]
[]
[]
[]
[null,null,"an Nichtunternehmer","an Nichtunternehmer","an Nichtunternehmer"]
[]
[null,null,"Rechnungspflicht nur bei","Keine Steuerbefreiung als","Drittlandsexport"]
[null,null,"Werklieferungen oder","innergemeinschaftliche Lieferung","(steuerfrei gem. § 7 UStG)"]
[null,null,"Werkleistungen iZm Grundstücken"]
[null,null,"(§ 11 Abs 1 UStG)","Grundsätzlich steuerbar und"]
[null,null,null,"steuerpflichtig im Ursprungsland,"]
[null,null,null,"ausgenommen im Versendungsfall"]
[null,null,null,"(Art 3 Abs 3 UStG)"]

{"sheet":"igL","index":4,"n_rows":35,"n_cols":6,"rows_kept":35,"cut":false,"hidden":false,"merged":[]}
[null,"Innergemeinschaftliche Lieferung (Art 7 UStG)",null,null,null,1]
[]
[null,"Voraussetzungen für (echte) Steuerbefreiung:"]
[]
[null,"Warenbewegung in einen anderen EU-Staat"]
[null,"Abnehmer ist Unternehmer und erwirbt für sein Unternehmen (oder Abnehmer ist juristische Person)"]
[null,"Erwerbsteuerbarkeit beim Abnehmer (siehe innerg. Erwerb)"]
[null,"Buchmäßiger Nachweis (einschließlich UID des Abnehmers)"]
[null,"Beförderungs- oder Versendungsnachweis"]
[null,"Keine Differenzbesteuerung beim Verkäufer (Art 24 Abs 3 UStG)"]
[null,"Lieferant ist kein Kleinunternehmer"]
[null,"Neufahrzeuge: Abnehmer kann auch Privatperson sein"]
[]
[null,"Formelle Vorschriften (Rechnungsangaben gem Art 11 UStG):"]
[]
[null,"   Hinweis auf Steuerfreiheit"]
[null,"   UID des Lieferanten"]
[null,"   UID des Abnehmers"]
[null,"Bei Neufahrzeugen: statt UID des Abnehmers Angaben über Fahrzeug (Art 1 Abs 8 und 9 UStG)"]
[]
[null,{"$f":"\"Rechnungshinweise für \"&VLOOKUP($F$1,EU,2)&\":\"","v":"Rechnungshinweise für Belgien:"},null,null,null,"DEMOVERSION, Liste nicht vollständig"]
[]
[null,"Innergemeinschaftliche Lieferung:",{"$f":"VLOOKUP($F$1,EU,7)","v":"livraison intracommunautaire exonérée TVA"}]
[null,"UID-Nummer",{"$f":"VLOOKUP($F$1,EU,3)","v":"le numéro d’identification à la taxe sur la valeur ajoutée BTW – identificatienummer"}]
[null,"UID abgekürzt",{"$f":"VLOOKUP($F$1,EU,4)","v":"No.TVA BTW-Nr."}]
[null,"Aufbau der UID",{"$f":"VLOOKUP($F$1,EU,5)&\" + \"&VLOOKUP($F$1,EU,6)","v":"BE + zehn Ziffern"}]
[]
[]
[null,"UVA - Kennzahlen","000, 017 (Neufahrzeuge an Private: 018)"]
[null,"ZM","ja"]
[]
[null,"EKR Buchungsvorschlag"]
[null,"innergemeinschaftliche Lieferung",{"$f":"VLOOKUP(12,_ekr4,2)","v":4000},"Kundenskonto",{"$f":"VLOOKUP(12,_ekr4,6)","v":4455}]
[null,"ig. Lieferung Neufahrzeuge an Private",{"$f":"VLOOKUP(18,_ekr4,2)","v":4105},"Kundenskonto",{"$f":"VLOOKUP(18,_ekr4,6)","v":"n.verg."}]
[null,"ig. Lieferung Anlagenverkauf",{"$f":"VLOOKUP(25,_ekr4,2)","v":4600}]

{"sheet":"WL","index":5,"n_rows":41,"n_cols":6,"rows_kept":41,"cut":false,"hidden":false,"merged":[]}
[null,"Werklieferungen",null,null,null,4]
[]
[null,"Begriff"]
[null,"Be- oder Verarbeitung eines vom Auftraggeber beigestellten Gegenstandes"]
[null,"unter Verwendung von Hauptstoffen"]
[]
[null,"Werklieferungen im Baugewerbe"]
[null,"z.B. Errichtung eines Gebäudes auf Grundstück des Kunden, "]
[null,"Einbauten (unbeweglich) in Gebäude (z.B. Heizung, Sanitär-, Elektroinstallationen)"]
[]
[null,"Ort der Werklieferung"]
[null,"Ort der Verschaffung der Verfügungsmacht (im Baugewerbe i.d.R. Grundstücksort)"]
[]
[null,"Reverse Charge"]
[]
[null,"*  § 19 Abs. 1 zweiter Satz UStG:"]
[null,"   Leistender = ausländischer Unternehmer"]
[null,"   Leistungsempfänger = Unternehmer,  K.Ö.R. oder juristische Person mit UID"]
[null,"   steuerpflichtige Leistung in Österreich"]
[]
[null,"*  § 19 Abs. 1a UStG (Bauleistungen)"]
[null,"   Bauleistung durch"]
[null,"   -  Subunternehmer oder"]
[null,"   - an Unternehmer, der üblicherweise selbst Bauleistungen  erbringt"]
[]
[null,"Rechnung an Unternehmer","Rechnung an Privatperson"]
[null,"Kein USt-Ausweis","USt-Ausweis"]
[null,"Hinweis auf Reverse Charge","Registrierungspflicht"]
[null,"UID des Leistungsempfängers"]
[]
[null,"UVA - Kennzahlen","UVA","Buchungsvorschlag"]
[]
[null,"a) Bauleistung steuerbar im Inland"]
[null,"    Leistungserbringer (z.B. Subunternehmer)","000, 021",{"$f":"VLOOKUP(9,_ekr4,2)","v":4190}]
[null,"    Kundenskonto","000, 021",{"$f":"VLOOKUP(9,_ekr4,6)","v":4490}]
[null,"    Leistungsempfänger Bauleistung mit RC","048, 082",{"$f":"VLOOKUP(8,_ekr5,2)","v":5770}]
[]
[null,"b) Bauleistung steuerbar im Ausland"]
[null,"    Leistender Unternehmer, Subunternehmer"," ---",{"$f":"VLOOKUP(15,_ekr4,2)","v":4100}]
[null,"    Keine ZM für Werklieferungen"]
[null,"    (Lieferung, fällt daher nicht unter § 3a Abs. 6 UStG)"]

{"sheet":"Drittex","index":6,"n_rows":40,"n_cols":6,"rows_kept":40,"cut":false,"hidden":false,"merged":[[21,1,21,4]]}
[null,"Drittlandsexport (§ 7 UStG)",null,null,null,4]
[]
[null,"Voraussetzungen für Steuerfreiheit:"]
[]
[null,"Warenbewegung in ein Drittland"]
[null,"Im Abholfall: ausländischer Abnehmer (aus EU oder Drittland)"]
[null,"Ausfuhrnachweis (siehe unten)"]
[null,"Buchmäßiger Nachweis"]
[]
[null,"Touristenexport (zusätzlich):"]
[]
[null,"Abnehmer aus Drittland (kein Wohnsitz in EU)"]
[null,"Ausfuhr innerhalb von drei Monaten"]
[null,"Rechnungsbetrag > 75 Euro"]
[]
[null,"Gegenstand zur Ausrüstung oder Versorgung eines Beförderungsmittels "]
[]
[null,"Steuerfreiheit im Abholfall (Details siehe Rz 1065 bis 1071 UStR): "]
[null,"ausländischer Unternehmer (aus EU oder Drittland)"]
[null,"Beförderungsmittel dient Zwecken des Unternehmens"]
[]
[null,"Ausfuhrnachweise"]
[]
[null,"im Versendungsfall (Rz 1083 UStR):",null,"im Beförderungsfall (Rz 1099 UStR):"]
[null,"Frachtbriefe",null,"Schriftliche Anmeldung mit zollamtl. Ausgangsbestätigung"]
[null,"Postaufgabebescheinigungen",null,"Ausfuhranzeige gem Art 796e VO EG 1875/2006"]
[null,"Konossemente u. dgl.",null,"Ausfuhrbescheinigung mit zollamtl. Ausgangsbestätigung"]
[null,"Ausfuhrbescheinigung eines EU-Spediteurs",null,"(wenn keine Zollanmeldung erforderlich, z.B. bis 1.000,-)"]
[null,"Schriftliche Anmeldung"]
[null,"Ausfuhranzeige gem Art 796e VO EG 1875/2006",null,"im Touristenexport (Rz 1093 ff UStR):"]
[null,null,null,"Ausfuhrbescheinigung mit zollamtl. Ausgangsbestätigung"]
[null,null,null,"(U 34 oder inhaltlich entsprechend, auch Rechnung)"]
[]
[null,"UVA - Kennzahlen","000, 011"]
[]
[null,"EKR Buchungsvorschlag"]
[null,"Erlöse Ausfuhrlieferungen",{"$f":"VLOOKUP(3,_ekr4,2)","v":4150},"Kundenskonto",{"$f":"VLOOKUP(3,_ekr4,6)","v":4405}]
[]
[]
[null,"ZM","nein"]

{"sheet":"igE","index":7,"n_rows":40,"n_cols":6,"rows_kept":40,"cut":false,"hidden":false,"merged":[]}
[null,"Innergemeinschaftlicher Erwerb (Art 1 UStG)",null,null,null,1]
[]
[null,"Voraussetzungen für innergemeinschaftlichen Erwerb"]
[]
[null,"Warenbewegung von einem in einen anderen EU-Staat"]
[null,"Lieferant ist Unternehmer (kein Kleinunternehmer)"]
[null,"Keine Differenzbesteuerung beim Verkäufer (Art 24 Abs 2 UStG)"]
[null,"Erwerber ist Unternehmer und erwirbt für sein Unternehmen (oder Erwerber ist juristische Person)"]
[null,"Erwerber ist kein Schwellenerwerber (Erwerbe < 11.000,- / Kalenderjahr):"]
[null,"  - ausschließlich unecht befreite Umsätze"]
[null,"  - pauschalierter Land- und Forstwirt"]
[null,"  - juristische Person für nichtuntern. Bereich"]
[]
[null,"Keine Voraussetzung für igE: Verwendung einer UID"]
[]
[null,"Rechnungsangaben gem Art 11 UStG für Lieferanten"]
[null,"(keine Voraussetzung für Vorsteuerabzug gem Art 12 UStG, vgl. Rz 4057 UStR)"]
[]
[null,"   Hinweis auf Steuerfreiheit"]
[null,"   UID des Lieferanten"]
[null,"   UID des Abnehmers"]
[]
[null,{"$f":"\"Rechnungshinweise \"&VLOOKUP($F$1,EU,2)&\":\"","v":"Rechnungshinweise Belgien:"},null,null,null,"DEMOVERSION, Liste nicht vollständig"]
[]
[null,"Innergemeinschaftliche Lieferung:",{"$f":"VLOOKUP($F$1,EU,7)","v":"livraison intracommunautaire exonérée TVA"}]
[null,"UID-Nummer",{"$f":"VLOOKUP($F$1,EU,3)","v":"le numéro d’identification à la taxe sur la valeur ajoutée BTW – identificatienummer"}]
[null,"UID abgekürzt",{"$f":"VLOOKUP($F$1,EU,4)","v":"No.TVA BTW-Nr."}]
[null,"Aufbau der UID",{"$f":"VLOOKUP($F$1,EU,5)&\" + \"&VLOOKUP($F$1,EU,6)","v":"BE + zehn Ziffern"}]
[]
[null,{"$f":"\"Erwerbsschwelle \"&VLOOKUP($F$1,EU,2)&\":\"","v":"Erwerbsschwelle Belgien:"},{"$f":"VLOOKUP(F1,EU,9)","v":"€ 11.200,-"},null,null,"(Stand 1.9.2011, ohne Gewähr)"]
[]
[null,"UVA - Kennzahlen ig. Erwerb","070 (steuerbar); 071 (steuerfrei)"]
[null,"ig. Erwerb steuerpflichtig","072 (20%); ","073 (10%); 088 (19%)"]
[null,"Vorsteuer ig. Erwerb",65]
[null,"nicht zu versteuernde Erwerbe","076 (besteuert im Bestimmungsland); 077 (mittl. Unt. bei Dreiecksgeschäft)"]
[]
[null,"EKR Buchungsvorschlag"]
[null,"Wareneinkauf ig. Erwerb 20%",{"$f":"VLOOKUP(3,_ekr5,2)","v":5120},"Lieferantenskonto igE 20%",{"$f":"VLOOKUP(3,_ekr5,6)","v":5812}]
[null,"Wareneinkauf ig. Erwerb 10%",{"$f":"VLOOKUP(2,_ekr5,2)","v":5110},"Lieferantenskonto igE 10%",{"$f":"VLOOKUP(2,_ekr5,6)","v":5811}]
[null,"Wareneinkauf ig. Erwerb 0%",{"$f":"VLOOKUP(1,_ekr5,2)","v":5100},"Lieferantenskonto igE 0%",{"$f":"VLOOKUP(1,_ekr5,6)","v":5810}]

{"sheet":"Versandhandel","index":8,"n_rows":39,"n_cols":14,"rows_kept":39,"cut":false,"hidden":false,"merged":[]}
[null,null,"Versandhandelsregelung (Art 3 Abs 3 UStG)",null,null,null,2,null,null,null,null,null,null,{"$f":"VLOOKUP(G1,EU,13)","v":0}]
[]
[null,null,"Betroffener Kundenkreis:"]
[]
[null,null,"Privatpersonen / Nichtunternehmer aus anderem EU-Staat und"]
[null,null,"Schwellenerwerber, d.h."]
[null,null,"  - ausschließlich unecht befreite Umsätze"]
[null,null,"  - pauschalierter Land- und Forstwirt"]
[null,null,"  - juristische Person für nichtuntern. Bereich"]
[]
[null,null,"Zusammenrechnung der Umsätze an o.a. Kunden für Ermittlung der Lieferschwelle."]
[null,null,"Die Versandhandelsregelung ist für jedes EU-Bestimmungsland getrennt anzuwenden."]
[]
[null,null,"Lieferschwelle wurde im Kalender-Vorjahr überschritten:"]
[]
[null,null,"Alle Umsätze im lfd. Jahr steuerbar im Bestimmungsland der Ware"]
[null,null,"Registrierungspflicht (Steuernummer) im Bestimmungsland"]
[null,null,"Kein zusätzlicher ig Erwerb durch Verbringen (Art 3 Abs 1 Z 1 lit a UStG)"]
[]
[null,null,"Lieferschwelle wurde im Kalender-Vorjahr nicht überschritten:"]
[]
[null,null,"Umsatz im lfd. Jahr steuerbar am Abgangsort der Ware:"]
[null,null," - bis zum Erreichen der Lieferschwelle (ohne Verzicht gem Art 3 Abs 6 UStG)"]
[null,null,"Keine Registrierungspflicht im Bestimmungsland"]
[]
[null,null,"Umsatz im lfd. Jahr steuerbar im Bestimmungsland der Ware:"]
[null,null," - ab dem Umsatz, mit dem die Lieferschwelle überschritten wird"]
[null,null," - ab dem ersten Umsatz bei Verzicht auf die Lieferschwelle (Bindung 2 J.)"]
[null,null,"Registrierungspflicht (Steuernummer) im Bestimmungsland"]
[null,null,"Kein zusätzlicher ig Erwerb durch Verbringen (Art 3 Abs 1 Z 1 lit a UStG)"]
[]
[null,null,{"$f":"\"Lieferschwelle in \"&VLOOKUP($G$1,EU,2)","v":"Lieferschwelle in Bulgarien"},null,null,"        DEMOVERSION, Liste nicht vollständig"]
[]
[null,null,{"$f":"VLOOKUP($G$1,EU,8)","v":"BGN 68.453,-"},"(ohne Gewähr, lfd. Änderungen möglich)"]
[null,null,{"$f":"\"Normalsteuersatz: \"&VLOOKUP($G$1,EU,10)&\"%\"","v":"Normalsteuersatz: 20%"},{"$f":"IF(N1=0,\"ermäßigter Steuersatz: \"&VLOOKUP($G$1,EU,11)&\"%\",\"ermäßigte Steuersätze: \"&VLOOKUP($G$1,EU,11)&\"%; \"&VLOOKUP($G$1,EU,12)&\"%\")","v":"ermäßigter Steuersatz: 9%"}]
[null,null,"(Stand 1.1.2012)","Details Steuersätze (EU-Homepage)"]
[]
[null,null,"EKR Buchungsvorschlag (Lieferschwelle überschritten oder Verzicht)"]
[null,null,"Erlöse stpfl. in anderem EU-Land",{"$f":"VLOOKUP(19,_ekr4,2)","v":4600},"Kundenskonto",{"$f":"VLOOKUP(19,_ekr4,6)","v":4601}]

{"sheet":"Rechnung","index":9,"n_rows":35,"n_cols":6,"rows_kept":35,"cut":false,"hidden":false,"merged":[]}
[null,"Rechnungsinhalt für Zwecke des Vorsteuerabzuges",null,null,null,3]
[]
[null,"Rechnungsangaben gem. § 11 Abs. 1 UStG (Bruttobetrag > 150,-)"]
[]
[null,"1. Name und Anschrift des liefernden oder leistenden Unternehmers;"]
[null,"2. Name und die Anschrift des Leistungsempfängers"]
[null,"3. die Menge und die handelsübliche Bezeichnung der Lieferung oder Leistung"]
[null,"4. den Tag der Lieferung / sonstigen Leistung oder Leistungszeitraum"]
[null,"5. Entgelt  (netto) und Steuersatz (oder Hinweis auf Steuerbefreiung)"]
[null,"6. Steuerbetrag"]
[null,"7. Ausstellungsdatum"]
[null,"8. fortlaufende Nummer"]
[null,"9. UID des liefernden oder leistenden Unternehmers"]
[]
[null,"Zusätzliche Rechnungsangabe bei Bruttobetrag > 10.000,-"]
[]
[null,"10. UID des Leistungsempfängers"]
[]
[null,"Erleichterungen:"]
[]
[null,"Kleinbetragsrechnungen gem. § 11 Abs. 6 UStG (brutto bis 150,-)"]
[]
[null,"1. Ausstellungsdatum"]
[null,"2. Name und Anschrift des liefernden oder leistenden Unternehmers;"]
[null,"3. die Menge und die handelsübliche Bezeichnung der Lieferung oder Leistung"]
[null,"4. den Tag der Lieferung / sonstigen Leistung oder Leistungszeitraum"]
[null,"5. Bruttoentgelt"]
[null,"6. Steuersatz."]
[]
[null,"Fahrausweise im Personenbeförderungsverkehr (§ 11 Abs. 9 UStG)"]
[]
[null,"1. Ausstellungsdatum"]
[null,"2. Name und Anschrift des Beförderungsunternehmers,"]
[null,"3. Bruttoentgelt"]
[null,"4. Steuersatz."]

{"sheet":"Re igL","index":10,"n_rows":33,"n_cols":13,"rows_kept":33,"cut":false,"hidden":false,"merged":[]}
[null,"Mitgliedstaat","Bezeichnung UID in Landessprache","Abkürzung","Länder-Kz","Aufbau weitere Stellen","steuerfreie innergemeinschaftliche Lieferung","Lieferschwelle","Erwerbsschwelle","Normalsteuersatz","ermäßigter Steuersatz",null,"2 erm"]
[1,"Belgien","le numéro d’identification à la taxe sur la valeur ajoutée BTW – identificatienummer","No.TVA BTW-Nr.","BE","zehn Ziffern","livraison intracommunautaire exonérée TVA","€ 35.000,-","€ 11.200,-",21,6,12,{"$f":"IF(ISBLANK(L2),0,1)","v":1}]
[2,"Bulgarien","Dank dobaweha stoinost","DDS = ДДС","BG","neun oder zehn Ziffern",null,"BGN 68.453,-","BGN 20.000,-",20,9,null,{"$f":"IF(ISBLANK(L3),0,1)","v":0}]
[3,"Dänemark","momsregistreringsnummer","SE-Nr.","DK","acht Ziffern","skattefri indenrigs leverance","DKK 280.000,-","DKK 80.000,-",25," -",null,0]
[4,"Deutschland","Umsatzsteuer-Identifikationsnummer","USt-IdNr.","DE","neun Ziffern","steuerfreie innergemeinschaftliche Lieferung","€ 100.000,-","€ 12.500,-",19,7,null,0]
[5,"Estland","Käibemaksukohustuslasena registreerimise number","KMKR-number","EE","neun Ziffern","käibemaksuvaba ühendusesisene kättetoimetamine","EEK 550.000,-","EEK 160.000,-",20,9,null,0]
[6,"Finnland","Arvonlisâvero-nummer","ALV-NRO","FI","acht Ziffern","veroton yhteisömyynti","€ 35.000,-","€ 10.000,-",23,13,9,1]
[7,"Frankreich","le numéro d’identification à la taxe sur la valeur ajoutée","keine","FR","elf Ziffern bzw. erste und/ oder zweite Stelle kann Buchstabe sein","livraison intracommunautaire exonérée TVA","€ 100.000,-","€ 10.000,-",19.600000000000001,5.5,2.1,1]
[8,"Griechenland","Arithmos Forologikou Mitroou FPA","A.φ.M.","EL","neun Ziffern; alte achtstellige USt-IdNrn. Voranstellen der Ziffer Ø","tax free intracommunity delivery","€ 35.000,-","€ 10.000,-",23,13,6.5,1]
[9,"Großbritannien","value added tax registration number","VAT Reg.No.","GB","neun oder zwölf Ziffern; Verwaltungen und Gesundheitswesen: GD o. HA + fünf","tax free intracommunity delivery","GBP 70.000,-","GBP 55.000,-",20,5,0,1]
[10,"Irland","value added tax identification number","VAT No","IE","acht, die zweite Stelle kann und die letzte muss ein Buchstabe sein","tax free intracommunity despatch","€ 35.000,-","€ 41.000,-",23,13.5,4.8,1]
[11,"Italien","il numero di registrazione IVA","P.IVA","IT","elf Ziffern","cessioni intracomunitarie esenti","€ 35.000,-","€ 8.263,-",21,10,4,1]
[12,"Lettland","pievienotāsvērtības nodokļa reģistrācijas numurs","PVN","LV","elf Ziffern","Ar 0 % apliekamas precu piegades ES ietvaros, PVN likuma 28. pants","LVL 24.000,-","LVL 7.000,-",22,12,null,0]
[13,"Litauen","Pridetines vertes mokescio moketojo kodas","PVM moketojo kodas","LT","neun oder zwölf Ziffern","pridetines vertes mokesciu neapmokestinamas tiekimas Europos Sajungos viduje","LTL 125.000,-","€ 35.000,-",21,9,5,1]
[14,"Luxemburg","le numéro d’identification à la taxe sur la valeur ajoutée","keine","LU","acht Ziffern","livraison intracommunautaire exonérée TVA","€ 100.000,-","€ 10.000,-",15,12,6,1]
[15,"Malta","numru ta'l-identifikazzjoni tat-taxxa fuq il-valr miujud"," ","MT","acht Ziffern","tax free intracommunity delivery","€ 35.000,-","€ 10.000,-",18,5,null,0]
[16,"Niederlande","BTW-identificatienummer","OB-Nummer","NL","zwölf, die drittletzte Stelle muss der Buchstabe B sein","BTW-Registratiennummer leverancier en afnemer","€ 100.000,-","€ 10.000,-",19,6,null,0]
[17,"Österreich","Umsatzsteuer-Identifikationsnummer","UID-Nr.","AT","U + acht Ziffern","steuerfreie innergemeinschaftliche Lieferung","€ 35.000,- (bis 2010: € 100.000,-)","€ 11.000,-",20,10,12,1]
[18,"Polen","Numer identyfikacjiny podatkowej","NIP","PL","zehn Ziffern","wewnatrzwspólnotowa dostawa towarów opodatkowana wg. stawki podatku 0 % – Art. 42","PLN 139.000,-","PLN 50.000,-",23,8,5,1]
[19,"Portugal","o número de identificacao para efeitos do imposto sobre o valor acrescentado","NIPC","PT","neun Ziffern","fornecimento inter-comunitário isento de IVA","€ 35.000,-","€ 10.000,-",23,13,6,1]
[20,"Rumänien","Cod de inregistrare in scopuri de TVA",null,"RO","zehn Ziffern",null,"RON 149.023,-","RON 33.800,-",24,9,5,1]
[21,"Schweden","Registrieringsnummer för mervädesskatt (Momsnummer)","MomsNr.","SE","zwölf Ziffern, die beiden letzten Stellen Ø1","skattefri gemenskapsintern leverans","SEK 320.000,-","SEK 90.000,-",25,12,6,1]
[22,"Slowakei","Dan z pridanej hodnoty","IC DPH","SK","zehn Ziffern","od dane oslobodené intrakomuni-tárne dodávky","€ 35.000,-","€ 12.500,-",20,10,null,0]
[23,"Slowenien","identifikacijska številka za DDV","DDV","SI","acht Ziffern","oprošcena dobava znotraj skupnosti","€ 35.000,-","€ 10.000,-",20,8.5,null,0]
[24,"Spanien","el número de identificación a efectos del Impuesto sobre el Valor Anadido","N.IVA","ES","neun, erste und / oder letzte Stelle kann Buchstabe sein","entrega intracomunitaria libre de impuesto","€ 35.000,-","€ 10.000,-",18,8,4,1]
[25,"Tschechien","danove identifikacni cislo","DIC","CZ","acht, neun oder zehn Ziffern","dodání zboží do jiného clenského státu, osvobozené od DPH","CZK 1,140.000,-","CZK 326.000,-",20,14,null,0]
[26,"Ungarn","közösségi adószám"," ","HU","acht Ziffern","forgalmiadó-mentes, Közösségenbelülrol történo áruszállítás","HUF 9,758.700,-","HUF 2,5 Mio",27,18,5,1]
[27,"Zypern (griech. Teil)","Arithmos egrafis FPA","FPA","CY","neun Stellen, die letzte Stelle muss ein Buchstabe sein","tax free intracommunity delivery","€ 35.000,-","€ 10.251,-",15,8,5,1]
[]
[]
[]
[]
[null,null,null,null,null,null,null,"2011-01-01","2011-07-01","2012-01-01"]

{"sheet":"VO igL","index":11,"n_rows":92,"n_cols":2,"rows_kept":92,"cut":false,"hidden":false,"merged":[]}
[null,"Verordnung des Bundesministers für Finanzen über den Nachweis der Beförderung"]
[null,"oder Versendung und den Buchnachweis bei innergemeinschaftlichen Lieferungen"]
[]
[null,"BGBl. Nr. 401/1996                                     Stand: 1.1.2012 (ohne Gewähr, Hervorhebungen stammen vom Autor)"]
[]
[null,"Auf Grund des Artikels 7 des Umsatzsteuergesetzes 1994, BGBl. Nr. 663/1994, zuletzt geändert durch"]
[null,"das Bundesgesetz BGBl. I Nr. 34/2010, wird verordnet:"]
[]
[null,"Nachweis der Beförderung oder Versendung bei"]
[null,"innergemeinschaftlichen Lieferungen"]
[]
[null,"§ 1. Bei innergemeinschaftlichen Lieferungen (Art. 7 UStG 1994) muss der Unternehmer eindeutig und"]
[null,"       leicht nachprüfbar nachweisen, dass er oder der Abnehmer den Gegenstand der Lieferung in das übrige"]
[null,"      Gemeinschaftsgebiet befördert oder versendet hat."]
[]
[null,"§ 2. In den Fällen, in denen der Unternehmer oder der Abnehmer den Gegenstand der Lieferung in das"]
[null,"       übrige Gemeinschaftsgebiet befördert, hat der Unternehmer den Nachweis wie folgt zu führen:"]
[]
[null,"    1. durch die Durchschrift oder Abschrift der Rechnung (§ 11, Art. 11 UStG 1994),"]
[null,"    2. durch einen handelsüblichen Beleg, aus dem sich der Bestimmungsort ergibt, insbesondere Lieferschein, und"]
[null,"    3. durch eine Empfangsbestätigung des Abnehmers oder seines Beauftragten oder in den Fällen der"]
[null,"        Beförderung des Gegenstandes durch den Abnehmer durch eine Erklärung des Abnehmers oder"]
[null,"        seines Beauftragten, dass er den Gegenstand in das übrige Gemeinschaftsgebiet befördern wird."]
[]
[null,"§ 3. (1) In den Fällen, in denen der Unternehmer oder der Abnehmer den Gegenstand der Lieferung in"]
[null,"        das übrige Gemeinschaftsgebiet versendet, hat der Unternehmer den Nachweis wie folgt zu führen:"]
[]
[null,"    1. durch die Durchschrift oder Abschrift der Rechnung (§ 11, Art. 11 UStG 1994) und"]
[null,"    2. durch einen Versendungsbeleg im Sinne des § 7 Abs. 5 UStG 1994, insbesondere durch Frachtbriefe,"]
[null,"        Postaufgabebescheinigungen, Konnossemente und dergleichen oder deren Doppelstücke."]
[]
[null,"        (2) Ist es dem Unternehmer nicht möglich oder nicht zumutbar, den Versendungsnachweis nach Absatz 1"]
[null,"        zu führen, kann er den Nachweis auch nach § 2 führen."]
[]
[null,"§ 4. (1) Ist der Gegenstand der Lieferung vor der Beförderung oder Versendung in das übrige"]
[null,"        Gemeinschaftsgebiet durch einen Beauftragten bearbeitet oder verarbeitet worden (Art. 7 Abs. 1 letzter"]
[null,"        Unterabsatz UStG 1994), so hat der Unternehmer die Versendung oder Beförderung nachzuweisen (§ 2)."]
[null,"        Zusätzlich dazu hat der Unternehmer auf einem Beleg festzuhalten:"]
[]
[null,"    1. den Namen und die Anschrift des Beauftragten,"]
[null,"    2. die handelsübliche Bezeichnung und die Menge des an den Beauftragten übergebenen oder"]
[null,"        versendeten Gegenstandes,"]
[null,"    3. den Ort und den Tag der Entgegennahme des Gegenstandes durch den Beauftragten und"]
[null,"    4. die Bezeichnung des Auftrages und der vom Beauftragten vorgenommenen Bearbeitung oder Verarbeitung."]
[]
[null,"        (2) Ist der Gegenstand der Lieferung durch mehrere Beauftragte bearbeitet oder verarbeitet worden, so"]
[null,"        haben sich die in Absatz 1 bezeichneten Angaben auf die Bearbeitungen oder Verarbeitungen eines jeden"]
[null,"        Beauftragten zu erstrecken."]
[]
[null,"Buchnachweis bei innergemeinschaftlichen Lieferungen"]
[]
[null,"§ 5. Bei innergemeinschaftlichen Lieferungen muss der Unternehmer die Voraussetzungen der"]
[null,"       Steuerbefreiung einschließlich Umsatzsteuer-Identifikationsnummer des Abnehmers buchmäßig"]
[null,"       nachweisen. Die Voraussetzungen müssen leicht nachprüfbar aus der Buchführung zu ersehen sein."]
[]
[null,"§ 6. Der Unternehmer hat folgendes aufzuzeichnen:"]
[null,"    1. den Namen, die Anschrift und die Umsatzsteuer-Identifikationsnummer des Abnehmers,"]
[null,"    2. den Namen und die Anschrift des Beauftragten des Abnehmers in Abholfällen,"]
[null,"    3. die handelsübliche Bezeichnung und die Menge des Gegenstandes der Lieferung,"]
[null,"    4. den Tag der Lieferung,"]
[null,"    5. das vereinbarte Entgelt oder bei der Besteuerung nach vereinnahmten Entgelten das vereinnahmte"]
[null,"        Entgelt und den Tag der Vereinnahmung,"]
[null,"    6. die Art und den Umfang einer Bearbeitung oder Verarbeitung vor der Beförderung oder Versendung in"]
[null,"        das übrige Gemeinschaftsgebiet (Art. 7 Abs. 1 letzter Unterabsatz UStG 1994),"]
[null,"    7. die Beförderung oder Versendung in das übrige Gemeinschaftsgebiet und"]
[null,"    8. den Bestimmungsort im übrigen Gemeinschaftsgebiet."]
[]
[null,"§ 7. In den einer Lieferung gleichgestellten Verbringungsfällen (Art. 3 Abs. 1 UStG 1994) hat der"]
[null,"       Unternehmer folgendes aufzuzeichnen:"]
[null,"    1. die handelsübliche Bezeichnung und die Menge des verbrachten Gegenstandes,"]
[null,"    2. die Anschrift und die Umsatzsteuer-Identifikationsnummer des im anderen Mitgliedstaates gelegenen"]
[null,"        Unternehmensteils,"]
[null,"    3. den Tag des Verbringens und"]
[null,"    4. die Bemessungsgrundlage nach Art. 4 Abs. 2 UStG 1994."]
[]
[null,"§ 8. In den Fällen, in denen neue Fahrzeuge an Abnehmer ohne Umsatzsteuer-Identifikationsnummer in"]
[null,"       das übrige Gemeinschaftsgebiet geliefert werden, hat der Unternehmer folgendes aufzuzeichnen:"]
[null,"    1. den Namen und die Anschrift des Erwerbers,"]
[null,"    2. die handelsübliche Bezeichnung des gelieferten Fahrzeuges,"]
[null,"    3. den Tag der Lieferung,"]
[null,"    4. das vereinbarte Entgelt oder bei der Besteuerung nach vereinnahmten Entgelten das vereinnahmte"]
[null,"        Entgelt und den Tag der Vereinnahmung,"]
[null,"    5. die in Art. 1 Abs. 8 und 9 UStG 1994 bezeichneten Merkmale,"]
[null,"    6. die Beförderung oder Versendung in das übrige Gemeinschaftsgebiet und"]
[null,"    7. den Bestimmungsort im übrigen Gemeinschaftsgebiet."]
[]
[null,"        Sperre in der Genehmigungsdatenbank     (BGBl II Nr. 172/2010 vom 16.6.2010):"]
[]
[null,"§ 9. Als weiterer Nachweis, dass der Gegenstand der Lieferung in das übrige Gemeinschaftsgebiet"]
[null,"       befördert oder versendet wird, ist bei der Lieferung von Fahrzeugen im Sinne des § 2 des"]
[null,"       Normverbrauchsabgabegesetzes, BGBl. Nr. 695/1991, die Sperre des Fahrzeuges"]
[null,"       in der Genehmigungsdatenbank nach § 30a KFG 1967 erforderlich.”"]

{"sheet":"VO Nfz","index":12,"n_rows":48,"n_cols":2,"rows_kept":48,"cut":false,"hidden":false,"merged":[]}
[null,"Verordnung des Bundesministers für Finanzen betreffend die Meldepflicht der"]
[null,"innergemeinschaftlichen Lieferung neuer Fahrzeuge"]
[]
[null,"BGBl. II Nr. 308/2003                        Stand: 1.1.2012 (ohne Gewähr, Hervorhebungen stammen vom Autor)"]
[]
[null,"Auf Grund des Artikels 27 Abs. 2 des Umsatzsteuergesetzes 1994, BGBl. Nr. 663, in der Fassung"]
[null,"des Bundesgesetzes BGBl. I Nr. 10/2003 wird verordnet:"]
[]
[]
[]
[]
[null,"§ 1. (1) Unternehmer (§ 2 UStG 1994) haben ihre innergemeinschaftlichen Lieferungen neuer Fahrzeuge"]
[null,"      im Sinne des Art. 1 UStG 1994 an Abnehmer ohne Umsatzsteuer-Identifikationsnummer nach"]
[null,"      amtlichem Vordruck zu melden."]
[]
[null,"(2) Fahrzeuglieferer (Art. 2 UStG 1994) haben ihre innergemeinschaftlichen Lieferungen neuer"]
[null,"      Fahrzeuge im Sinne des Art. 1 UStG 1994 nach amtlichem Vordruck zu melden."]
[]
[null,"§ 2. Die Meldung hat folgende Angaben zu enthalten:"]
[]
[null,"– Rechnungsdatum,"]
[null,"– Name und Anschrift des Verkäufers; sofern der Verkäufer Unternehmer ist, auch dessen Umsatzsteuer-"]
[null,"   Identifikationsnummer,"]
[null,"– Bestimmungsmitgliedstaat (falls dies nicht möglich, den Mitgliedstaat, in dem der Käufer Wohnsitz,"]
[null,"   Sitz oder gewöhnlichen Aufenthalt hat),"]
[null,"– Name und Anschrift des Käufers,"]
[null,"– Entgelt für das gelieferte Fahrzeug samt Zubehör,"]
[null,"– Art des Fahrzeuges (Land-, Wasser- oder Luftfahrzeug),"]
[null,"– Beschreibung des Fahrzeuges (Marke und Modell),"]
[null,"– Datum der ersten Inbetriebnahme, sofern diese vor der Rechnungslegung liegt,"]
[null,"– Kilometerstand (Landfahrzeuge), Anzahl der Betriebsstunden (Wasserfahrzeuge, Luftfahrzeuge),"]
[null,"– Fahrgestellnummer oder Kraftfahrzeug-Kennzeichen (Landfahrzeuge) bzw. Zellennummer (Luftfahrzeuge)."]
[]
[null,"§ 3. Die Meldung ist"]
[]
[null,"   1. von Unternehmern (§ 2 UStG 1994) bis zum Ablauf des auf jedes Kalendervierteljahr folgenden"]
[null,"       Kalendermonates, in dem die innergemeinschaftlichen Lieferungen von Kraftfahrzeugen ausgeführt"]
[null,"       wurden,"]
[null,"   2. von Fahrzeuglieferern (Art. 2 UStG 1994) im Zeitpunkt der Geltendmachung des Vorsteuerabzuges"]
[null,"       (Art. 12 Abs. 3 UStG 1994), spätestens bis zum Ablauf des dem Kalendermonat folgenden"]
[null,"       Monates, in dem die innergemeinschaftliche Lieferung des Kraftfahrzeuges ausgeführt wurde,"]
[null,"       abzugeben."]
[]
[null,"§ 4. Die Meldung gemäß § 3 ist bei dem für die Erhebung der Umsatzsteuer zuständigen Finanzamt"]
[null,"       einzureichen."]
[]
[null,"§ 5. Die Verordnung ist auf die Meldung von Lieferungen anzuwenden, die in Kalendervierteljahre"]
[null,"       fallen, die nach der Kundmachung der Verordnung beginnen."]

{"sheet":"AuswahlOrt","index":13,"n_rows":24,"n_cols":4,"rows_kept":24,"cut":false,"hidden":false,"merged":[]}
[]
[null,"Ort der sonstigen Leistung (§ 3a UStG)"]
[]
[null,"Bitte Leistungsempfänger auswählen:"]
[]
[]
[]
[null," Leistung (ganz oder teilweise)"," Privatperson"," Beispiele:"]
[null," für unternehmerischen Bereich"]
[null,null," Leistung an Unternehmer"," > Gemeinnützer Verein"]
[null," auch, wenn  Leistung für den "," für ausschließlich privaten Bereich"," > Gemeinde (nur Hoheitsbereich)"]
[null," nicht steuerbaren Bereich, z.B.:",null," > Reine Holding"]
[null,null," Reine Holding (ohne UID)"]
[null," Gemischte Holding;"]
[null," Gemeinde mit unternehmerischem"," Nichtunternehmerisch tätige "]
[null,"    und Hoheitsbereich"," juristische Person ohne UID"]
[]
[null," Gesetz:"," Gesetz:"," Gesetz:"]
[null," § 3a Abs. 5 Z. 1 UStG"," § 3a Abs. 5 Z. 3 UStG"," § 3a Abs. 5 Z. 2 UStG"]
[]
[null," UStR:"," UStR:"," UStR:"]
[null," Rz 638n bis 638s"," Rz 638v"," Rz 638p"]
[]
[null,"Gesetzestext:"]

{"sheet":"Hilfe A","index":14,"n_rows":21,"n_cols":4,"rows_kept":21,"cut":false,"hidden":false,"merged":[]}
[1," Unternehmer"," Nichtunternehmer"," Juristische Person mit UID"]
[2]
[3," Leistung (ganz oder teilweise)"," Privatperson"," Beispiele:"]
[4," für unternehmerischen Bereich"]
[5,null," Leistung an Unternehmer"," > Gemeinnützer Verein"]
[6," Leistung für den "," für ausschließlich privaten Bereich"," > Gemeinde (nur Hoheitsbereich)"]
[7," nicht steuerbaren Bereich, z.B.:",null," > Reine Holding"]
[8,null," Reine Holding (ohne UID)"]
[9," Gemischte Holding;",null," Gesetz:"]
[10," Gemeinde mit unternehmerischem"," Nichtunternehmerisch tätige "," § 3a Abs. 5 Z. 2 UStG"]
[11,"    und Hoheitsbereich"," juristische Person ohne UID"]
[12,null,null," UStR:"]
[13," Gesetz:"," Gesetz:"," Rz 638p"]
[14," § 3a Abs. 5 Z. 1 UStG"," § 3a Abs. 5 Z. 3 UStG"]
[15]
[16," UStR:"," UStR:"]
[17," Rz 638n bis 638s"," Rz 638v"]
[18]
[19]
[20]
[21]

{"sheet":"Unternehmer","index":15,"n_rows":31,"n_cols":5,"rows_kept":31,"cut":false,"hidden":false,"merged":[[7,4,8,4],[12,4,14,4]]}
[]
[null,"Ort der sonstigen Leistung (§ 3a, Art 3a UStG)",null,2]
[]
[null,"... an UNTERNEHMER oder jur. Person mit UID"]
[]
[null,"Bitte auswählen (DEMOVERSION: nur Vermittlungs- oder Grundstücksleistung verfügbar):"]
[null,null,{"$f":"VLOOKUP(1,HilfeU,$D$2+1)","v":"Vermittlungsleistung"},null,"Leistungsort:"]
[null,null,{"$f":"VLOOKUP(2,HilfeU,$D$2+1)","v":0},null,{"$f":"VLOOKUP(D2,LoesungU,3)","v":"Empfängerstaat"}]
[null,null,{"$f":"VLOOKUP(3,HilfeU,$D$2+1)","v":"Vermittlungsleistungen sind sonstige Leistungen,"}]
[null,null,{"$f":"VLOOKUP(4,HilfeU,$D$2+1)","v":"bei denen der Unternehmer im fremden Namen"},null,{"$f":"\"§ 3a Abs. \"&VLOOKUP(D2,LoesungU,4)&\" UStG\"","v":"§ 3a Abs. 6 UStG"}]
[null,null,{"$f":"VLOOKUP(5,HilfeU,$D$2+1)","v":"und für fremde Rechnung nach außen hin auftritt."}]
[null,null,{"$f":"VLOOKUP(6,HilfeU,$D$2+1)","v":"Der Vermittler erhält für den Abschluss eines"},null,"Hinweise, Besonderheiten, Ausnahmen"]
[null,null,{"$f":"VLOOKUP(7,HilfeU,$D$2+1)","v":"Geschäftes zwischen seinem Auftraggeber und"},null,{"$f":"VLOOKUP(D2,LoesungU,5)","v":"Ausnahme: Grundstücksmakler (= Grundstücksleistung)"}]
[null,null,{"$f":"VLOOKUP(8,HilfeU,$D$2+1)","v":"einem Dritten eine Provision."}]
[null,null,{"$f":"VLOOKUP(9,HilfeU,$D$2+1)","v":0}]
[null,null,{"$f":"VLOOKUP(10,HilfeU,$D$2+1)","v":"Eine Vermittlungsleistung an einen Unternehmer"}]
[null,null,{"$f":"VLOOKUP(11,HilfeU,$D$2+1)","v":"wird (ausgenommen Grundstücksmakler) "},null,"Reverse Charge"]
[null,null,{"$f":"VLOOKUP(12,HilfeU,$D$2+1)","v":"im Empfängerstaat ausgeführt (Generalklausel)."},null,"Leistender = ausländischer Unternehmer,"]
[null,null,{"$f":"VLOOKUP(13,HilfeU,$D$2+1)","v":"Ab 2010 gibt es keine Sonderregelung mehr"},null,{"$f":"E8&\" = Österreich:\"","v":"Empfängerstaat = Österreich:"}]
[null,null,{"$f":"VLOOKUP(14,HilfeU,$D$2+1)","v":"für die Vermittlung von Katalogleistungen."},null,{"$f":"\"Reverse Charge in Österreich \"&VLOOKUP(D2,LoesungU,9)","v":"Reverse Charge in Österreich "}]
[null,null,{"$f":"VLOOKUP(15,HilfeU,$D$2+1)","v":0},null,"Leistender = österreichischer Unternehmer,"]
[null,null,{"$f":"VLOOKUP(16,HilfeU,$D$2+1)","v":"Eine Verschiebung des Leistungsortes durch UID"},null,{"$f":"E8&\" = anderer EU-Staat:\"","v":"Empfängerstaat = anderer EU-Staat:"}]
[null,null,{"$f":"VLOOKUP(17,HilfeU,$D$2+1)","v":"ist ab 2010 nicht mehr möglich."},null,"Reverse Charge in anderem EU-Staat"]
[null,null,{"$f":"VLOOKUP(18,HilfeU,$D$2+1)","v":0},null,{"$f":"VLOOKUP(D2,LoesungU,8)","v":"zwingend"}]
[null,null,{"$f":"VLOOKUP(19,HilfeU,$D$2+1)","v":"Steuerbefreiungen für Vermittlungsleistungen:"},null,"Leistender = österreichischer Unternehmer,"]
[null,null,{"$f":"VLOOKUP(20,HilfeU,$D$2+1)","v":" - § 6 Abs. 1 Z. 5 UStG"},null,{"$f":"E8&\" = Drittland:\"","v":"Empfängerstaat = Drittland:"}]
[null,null,{"$f":"VLOOKUP(21,HilfeU,$D$2+1)","v":" - § 6 Abs. 1 Z. 8 UStG"},null,"Reverse Charge im Drittland"]
[null,null,{"$f":"VLOOKUP(22,HilfeU,$D$2+1)","v":" - § 6 Abs. 1 Z. 13 UStG"},null,"wenn nach nationalem Recht vorgesehen"]
[null,null,{"$f":"VLOOKUP(23,HilfeU,$D$2+1)","v":0}]
[null,null,{"$f":"VLOOKUP(24,HilfeU,$D$2+1)","v":"§ 3a Abs. 6 UStG"},null,"Aufnahme ZM (Leistung an ausl. Unternehmer aus EU)"]
[null,null,{"$f":"VLOOKUP(25,HilfeU,$D$2+1)","v":"UStR neu: Rz 639s"},null,{"$f":"VLOOKUP(D2,LoesungU,6)","v":"JA"}]

{"sheet":"Laenderliste","index":16,"n_rows":31,"n_cols":10,"rows_kept":31,"cut":false,"hidden":false,"merged":[]}
[1,"Belgien","EU","belgische",null,null,null,"Aufteilung","DR"]
[2,"Bulgarien","EU","bulgarische",null,null,null,"Belgien","EU","belgische"]
[3,"Dänemark","EU","dänische",null,null,null,"Bulgarien","EU","bulgarische"]
[4,"Deutschland","EU","deutsche",null,null,null,"Dänemark","EU","dänische"]
[5,"Estland","EU","estische",null,null,null,"Deutschland","EU","deutsche"]
[6,"Finnland","EU","finnische",null,null,null,"DRITTLAND","DR","drittländische"]
[7,"Frankreich","EU","französische",null,null,null,"DRITTLAND 2","DR","drittländische"]
[8,"Griechenland","EU","griechische",null,null,null,"Estland","EU","estische"]
[9,"Großbritannien","EU","britische",null,null,null,"EU-Staat nicht genannt","EU","EU nicht gen."]
[10,"Irland","EU","irische",null,null,null,"Finnland","EU","finnische"]
[11,"Italien","EU","italienische",null,null,null,"Frankreich","EU","französische"]
[12,"Lettland","EU","lettische",null,null,null,"Griechenland","EU","griechische"]
[13,"Litauen","EU","litauische",null,null,null,"Großbritannien","EU","britische"]
[14,"Luxemburg","EU","luxemburg.",null,null,null,"Irland","EU","irische"]
[15,"Malta","EU","maltesische",null,null,null,"Italien","EU","italienische"]
[16,"Niederlande","EU","holländische",null,null,null,"Lettland","EU","lettische"]
[17,"Österreich","EU","österr.",null,null,null,"Litauen","EU","litauische"]
[18,"Polen","EU","polnische",null,null,null,"Luxemburg","EU","luxemburg."]
[19,"Portugal","EU","portug.",null,null,null,"Malta","EU","maltesische"]
[20,"Rumänien","EU","rumänische",null,null,null,"Niederlande","EU","holländische"]
[21,"Schweden","EU","schwedische",null,null,null,"Österreich","EU","österreichische"]
[22,"Slowakei","EU","slowakische",null,null,null,"Polen","EU","polnische"]
[23,"Slowenien","EU","slowenische",null,null,null,"Portugal","EU","portugiesische"]
[24,"Spanien","EU","spanische",null,null,null,"Rumänien","EU","rumänische"]
[25,"Tschechien","EU","tschechische",null,null,null,"Schweden","EU","schwedische"]
[26,"Ungarn","EU","ungarische",null,null,null,"Slowakei","EU","slowakische"]
[27,"Zypern","EU","zyrische",null,null,null,"Slowenien","EU","slowenische"]
[28,"EU-Staat nicht genannt","EU",null,null,null,null,"Spanien","EU","spanische"]
[29,"DRITTLAND","DR","drittländische",null,null,null,"Tschechien","EU","tschechische"]
[30,"DRITTLAND 2","DR","drittländische",null,null,null,"Ungarn","EU","ungarische"]
[null,null,null,null,null,null,null,"Zypern","EU","zyrische"]

{"sheet":"U2","index":17,"n_rows":38,"n_cols":12,"rows_kept":38,"cut":false,"hidden":false,"merged":[]}
[]
[null,null,"Vermittlungsleistung für Unternehmer",null,null,null,null,null,false,"Steuerbefreiung = Wahr"]
[null,null,"(ausgenommen: Vermittlungsleistungen der Grundstücksmakler)"]
[]
[null,null,null,null,null,null,null,null,17,"Österreich"]
[null,null,"Leistender Unternehmer aus ...","Österreich","Anwender",null,null,null,6,{"$f":"VLOOKUP(I6,Laender,2)","v":"Finnland"},{"$f":"VLOOKUP(I6,Laender,3)","v":"EU"},{"$f":"VLOOKUP(I6,Laender,4)","v":"finnische"}]
[null,null,"Auftraggeber Unternehmer aus …",null,null,null,null,null,null,"(Leistungsempfänger)"]
[]
[]
[null,null,"z.B.: Drittlandsexporten (nicht igL!), anderen echt steuerbefreiten Umsätzen (§ 6 Abs. 1 Z. 5 UStG)"]
[null,null,"Krediten, Zahlungsmitteln, Forderungen, Wertpapieren, Gesellschaftsanteilen, Bürgschaften"]
[null,null,"u.a. (§ 6 Abs. 1 Z. 8 UStG); Bausparverträgen, Versicherungsvertreter (§ 6 Abs. 1 Z 13 UStG)"]
[]
[null,null,null,null,"Kz. UVA",null,null,null,{"$f":"IF(D18=\"20%\",1,IF(AND(I6=17,I2=TRUE),2,IF(AND(I6<>17,I2=TRUE),4,IF(AND(I6<>17,I6<>29),3,4))))","v":3},"Kontenplan (Erlöskonten)"]
[null,null,"Ort der Leistung",{"$f":"J6","v":"Finnland"},{"$f":"IF(D15=\"Österreich\",\"000\",\" --\")","v":" --"},null,null,null,1,"Provisionen 20%",{"$f":"VLOOKUP(30,_ekr4,2)","v":4821}]
[null,null,"Steuerpflichtig / steuerfrei",{"$f":"IF(I2=TRUE,\"steuerfrei\",\"steuerpflichtig\")","v":"steuerpflichtig"},{"$f":"IF(AND(E15=\"000\",D16=\"steuerfrei\"),\"015 / 020\",IF(AND(E15=\"000\",D16=\"steuerpflichtig\"),\"022\",\" --\"))","v":" --"},null,null,null,2,"Provisionen 0%",{"$f":"VLOOKUP(31,_ekr4,2)","v":0}]
[null,null,{"$f":"\"Reverse Charge in \"&J6","v":"Reverse Charge in Finnland"},{"$f":"IF(D16=\"steuerfrei\",\"nein\",IF(I5=I6,\"nein\",\"ja\"))","v":"ja"},{"$f":"IF(AND(K6=\"DR\",D17=\"ja\"),\"wenn RC im Drittland vorgesehen\",\"\")","v":""},null,null,null,3,"Erlöse sonstige Leistungen EU",{"$f":"VLOOKUP(16,_ekr4,2)","v":4101}]
[null,null,{"$f":"\"USt-Ausweis in der Rechnung (\"&VLOOKUP(D15,Ustausweis,3)&\")\"","v":"USt-Ausweis in der Rechnung (finnische)"},{"$f":"IF(AND(I6=17,D16=\"steuerpflichtig\"),\"20%\",\"nein\")&I20","v":"nein (Hinweis RCS)"},{"$f":"IF(AND(K6=\"EU\",I6<>17,I2=FALSE),\"ZM\",\"\")","v":"ZM"},null,null,null,4,"nicht steuerbare Auslandsumsätze",{"$f":"VLOOKUP(15,_ekr4,2)","v":4100}]
[]
[null,null,{"$f":"VLOOKUP($I$14,BMDU2L,2)","v":"Erlöse sonstige Leistungen EU"},"Buchungsvorschlag",{"$f":"VLOOKUP($I$14,BMDU2L,3)","v":4101},null,null,null,{"$f":"IF(E18=\"ZM\",\" (Hinweis RCS)\",\"\")","v":" (Hinweis RCS)"}]
[]
[]
[null,null,null,null,null,null,null,null,false,"Steuerbefreiung = Wahr = 1",{"$f":"IF(AND(I23=TRUE,I25<>17),1,0)","v":0}]
[]
[null,null,null,null,null,null,null,null,4,{"$f":"VLOOKUP(I25,Laender,2)","v":"Deutschland"}]
[null,null,"Leistender Unternehmer aus ...",null,null,null,null,null,17,"Österreich"]
[null,null,"Auftraggeber Unternehmer aus …","Österreich","Anwender"]
[]
[]
[]
[null,null,null,null,"Kz. UVA"]
[null,null,"Ort der Leistung",{"$f":"J26","v":"Österreich"}]
[null,null,"Steuerpflichtig / steuerfrei",{"$f":"IF($I$23=TRUE,\"steuerfrei\",\"steuerpflichtig\")","v":"steuerpflichtig"},null,null,null,null,{"$f":"IF(I25=17,1,IF(K23=0,2,3))","v":2},{"$f":"I33+K23","v":2}]
[null,null,{"$f":"\"Reverse Charge in \"&D32","v":"Reverse Charge in Österreich"},{"$f":"IF(D33=\"steuerfrei\",\"nein\",IF(I25=I26,\"nein\",\"ja\"))","v":"ja"},{"$f":"IF(D34=\"ja\",\"057 / 066\",\"\")","v":"057 / 066"},null,null,null,1,"Provisionen an Dritte",{"$f":"VLOOKUP(11,_ekr5,2)","v":7340}]
[null,null,"USt-Ausweis in der Rechnung",{"$f":"IF(AND(I25=17,D33=\"steuerpflichtig\"),\"20%\",\"nein\")","v":"nein"},{"$f":"IF(D35=\"20%\",\"060\",\"\")","v":""},null,null,null,2,"sonstige Leistungen RC",{"$f":"VLOOKUP(4,_ekr5,2)","v":5755}]
[null,null,null,null,null,null,null,null,3,"sonstige Leistungen kein RC",{"$f":"VLOOKUP(5,_ekr5,2)","v":5756}]
[null,null,{"$f":"VLOOKUP(I33,BMDU2E,2)","v":"sonstige Leistungen RC"},"Buchungsvorschlag",{"$f":"VLOOKUP(I33,BMDU2E,3)","v":5755}]
[null,null,null,null,null,null,null,null,null,null,{"$f":"VLOOKUP(7,_ekr5,2)","v":0}]

{"sheet":"U3","index":18,"n_rows":38,"n_cols":12,"rows_kept":38,"cut":false,"hidden":false,"merged":[]}
[]
[null,null,"Grundstücksleistung für Unternehmer",null,null,null,null,null,false,"Steuerbefreiung = Wahr"]
[null,null,"(einschließlich Vermittlungsleistungen der Grundstücksmakler)"]
[]
[null,null,null,null,null,null,null,null,17,"Österreich"]
[null,null,"Leistender Unternehmer aus ...","Österreich","Anwender",null,null,null,4,{"$f":"VLOOKUP(I6,Laender,2)","v":"Deutschland"},{"$f":"VLOOKUP(I6,Laender,3)","v":"EU"}]
[null,null,"Auftraggeber Unternehmer aus …",null,null,null,null,null,null,"(Leistungsempfänger)"]
[]
[null,null,"Grundstücksort:  ",null,null,null,null,null,17,{"$f":"VLOOKUP(I9,Laender,2)","v":"Österreich"},{"$f":"VLOOKUP(I9,Laender,3)","v":"EU"}]
[null,null,null,null,null,null,null,null,null,"(Grundstücksort)"]
[]
[null,null,"z.B. Vermietung von Geschäftslokalen (§ 6 Abs 1 Z 16 UStG) ohne Option"]
[]
[null,null,null,null,"Kz. UVA",null,null,null,{"$f":"IF(D18=\"ja\",1,IF(AND(I9=17,I2=TRUE),2,IF(I9<>17,3,\"?\")))","v":1},"Kontenplan (Erlöskonten)"]
[null,null,"Ort der Leistung",{"$f":"J9","v":"Österreich"},{"$f":"IF(D15=\"Österreich\",\"000\",\" --\")","v":"000"},null,null,null,1,"Erlöse 20% (10%)",{"$f":"VLOOKUP(1,_ekr4,2)&\"/\"&VLOOKUP(2,_ekr4,2)","v":"4120/4110"},4400]
[null,null,"Steuerpflichtig / steuerfrei",{"$f":"IF(I2=TRUE,\"steuerfrei\",\"steuerpflichtig\")","v":"steuerpflichtig"},{"$f":"IF(AND(E15=\"000\",D16=\"steuerfrei\"),\"020\",IF(AND(E15=\"000\",D16=\"steuerpflichtig\"),\"022 / 029\",\" --\"))","v":"022 / 029"},null,null,null,2,"Erlöse 0% unecht befreit",{"$f":"VLOOKUP(8,_ekr4,2)","v":4140},4456]
[null,null,{"$f":"\"Reverse Charge in \"&J9","v":"Reverse Charge in Österreich"},{"$f":"IF(D16=\"steuerfrei\",\"nein\",IF(I5=I9,\"nein\",\"ja\"))","v":"nein"},{"$f":"IF(AND(I9<>17,D17=\"ja\"),\"wenn RC dort vorgesehen\",\"\")","v":""},null,null,null,3,"grenzüberschreitende DL nicht steuerbar",{"$f":"VLOOKUP(15,_ekr4,2)","v":4100}]
[null,null,{"$f":"\"USt-Ausweis in der Rechnung (\"&VLOOKUP(D15,Ustausweis,3)&\")\"","v":"USt-Ausweis in der Rechnung (österreichische)"},{"$f":"IF(AND(I9=17,D16=\"steuerpflichtig\"),\"ja\",\"nein\")&I20","v":"ja"},"keine ZM",null,null,null,4,"Miet- und Pachterlöse",{"$f":"VLOOKUP(32,_ekr4,2)&\"/\"&VLOOKUP(33,_ekr4,2)","v":"4822/4811"},{"$f":"IF(I6=29,\"<<\",\"\")","v":""}]
[]
[null,null,{"$f":"VLOOKUP($I$14,BMDU3L,2)","v":"Erlöse 20% (10%)"},"Buchungsvorschlag",{"$f":"VLOOKUP($I$14,BMDU3L,3)","v":"4120/4110"}]
[null,null,{"$f":"IF(I14=1,\"Mieterträge 20% / 10% u.a.\",IF(I14=2,\"Mieterträge 0%\",\"\"))","v":"Mieterträge 20% / 10% u.a."},null,{"$f":"IF(I14=1,VLOOKUP(32,_ekr4,2)&\"/\"&VLOOKUP(33,_ekr4,2),IF(I14=2,VLOOKUP(34,_ekr4,2),\"\"))","v":"4822/4811"}]
[]
[null,null,null,null,null,null,null,null,true,null,null,"frei = 1000"]
[]
[null,null,null,null,null,null,null,null,29,{"$f":"VLOOKUP(I25,Laender,2)","v":"DRITTLAND"},null,"Leistender"]
[null,null,"Leistender Unternehmer aus ...",null,null,null,null,null,17,"Österreich"]
[null,null,"Auftraggeber Unternehmer aus …","Österreich","Anwender"]
[]
[null,null,"Grundstücksort:   ",null,null,null,null,null,26,{"$f":"VLOOKUP(I29,Laender,2)","v":"Ungarn"},null,"stb in Österreich=17"]
[null,null,null,null,null,null,null,null,null,"(Grundstücksort)"]
[null,null,null,null,"Kz. UVA"]
[null,null,"Ort der Leistung",{"$f":"J29","v":"Ungarn"},null,null,null,null,{"$f":"IF(I29<>17,4,IF(I25=17,3,IF(AND(I25<>17,I23=FALSE),1,2)))","v":4},"Kontenplan (Aufwandskonten)"]
[null,null,"Steuerpflichtig / steuerfrei",{"$f":"IF($I$23=TRUE,\"steuerfrei\",\"steuerpflichtig\")","v":"steuerfrei"},null,null,null,null,1," sonstige Leistungen RC",{"$f":"VLOOKUP(4,_ekr5,2)","v":5755}]
[null,null,{"$f":"\"Reverse Charge in \"&D32","v":"Reverse Charge in Ungarn"},{"$f":"IF(D33=\"steuerfrei\",\"nein\",IF(I25=I29,\"nein\",\"ja\"))","v":"nein"},{"$f":"IF(AND(I29=17,D34=\"ja\"),\"057 / 066\",IF(D34=\"ja\",\"wenn dort vorgesehen\",\"\"))","v":""},null,null,null,2," sonstige Leistungen kein RC",{"$f":"VLOOKUP(5,_ekr5,2)","v":5756}]
[null,null,"USt-Ausweis in der Rechnung",{"$f":"IF(AND(I25=I29,D33=\"steuerpflichtig\"),\"ja\",\"nein\")","v":"nein"},{"$f":"IF(AND(D35=\"ja\",I29=17),\"060\",\"\")","v":""},null,null,null,3," Miet- und Pachtaufwand",{"$f":"VLOOKUP(12,_ekr5,2)","v":7400}]
[null,null,null,null,null,null,null,null,4," sonstige Leistungen stb im Ausland",{"$f":"VLOOKUP(6,_ekr5,2)","v":5760}]
[null,null,{"$f":"VLOOKUP($I$32,BMDU3E,2)","v":" sonstige Leistungen stb im Ausland"},"Buchungsvorschlag",{"$f":"VLOOKUP($I$32,BMDU3E,3)","v":5760}]
[null,null,{"$f":"IF(I32=3,\" div. Aufwandskonten\",\"\")","v":""},null,{"$f":"IF(I32=3,\"74.. u.a.\",\"\")","v":""},null,null,null,null,null,{"$f":"IF(AND(D34=\"ja\",I29=17),\" (Hinweis RCS)\",\"\")","v":""}]

{"sheet":"VO3a16","index":19,"n_rows":0,"n_cols":0,"rows_kept":0,"cut":false,"hidden":false,"merged":[]}

{"sheet":"Loesung U","index":20,"n_rows":15,"n_cols":8,"rows_kept":15,"cut":false,"hidden":false,"merged":[]}
[]
[null,"Leistung","Leistungsort","Abs.","Ausnahmen, Besonderheiten","ZM","Leistender ist ausl. Unt."]
[1,"Besorgungsleistung","in DEMOVERSION nicht verfügbar"]
[2,"Vermittlungsleistung","Empfängerstaat",6,"Ausnahme: Grundstücksmakler (= Grundstücksleistung)","JA","Reverse Charge im Empfängerstaat","zwingend"]
[3,"Grundstücksleistung","Grundstücksort",9,null,"NEIN","Reverse Charge im Empfängerstaat","wenn nach nationalem Recht vorgesehen"]
[4,"Personenbeförderung","in DEMOVERSION nicht verfügbar"]
[5,"Güterbeförderung","in DEMOVERSION nicht verfügbar"]
[6,"Kultur etc.","in DEMOVERSION nicht verfügbar"]
[7,"Messen","in DEMOVERSION nicht verfügbar"]
[8,"Restaurant","in DEMOVERSION nicht verfügbar"]
[9,"Warenumschlag, Lagerung","in DEMOVERSION nicht verfügbar"]
[10,"Arbeiten an bewegl. körperl. Sachen","in DEMOVERSION nicht verfügbar"]
[11,"Kurzfr. Vermietung Kfz","in DEMOVERSION nicht verfügbar"]
[12,"Langfr. Vermietung Kfz","in DEMOVERSION nicht verfügbar"]
[13,"andere","in DEMOVERSION nicht verfügbar"]

{"sheet":"Hilfe U","index":21,"n_rows":25,"n_cols":14,"rows_kept":25,"cut":false,"hidden":false,"merged":[]}
[1,"Besorgungsleistung","Vermittlungsleistung","Grundstücksleistung","Personenbeförderung","Güterbeförderung","Kultur, Künstler, Wissenschaft, Unterricht,","Messen und Ausstellungen","Restaurant und Verpflegung","Warenumschlag, Lagerung","Arbeiten an bewegl. körperl. Sachen","Kurzfristige Vermietung von Beförderungsmitteln","Langfristige Vermietung von Beförderungsmitteln","Andere sonstige Leistung"]
[2,null,null,null,null,null,"Sport, Unterhaltung"]
[3,null,"Vermittlungsleistungen sind sonstige Leistungen,","Grundstücksleistungen sind sonstige Leistungen,","in DEMOVERSION nicht verfügbar","in DEMOVERSION nicht verfügbar","in DEMOVERSION nicht verfügbar","in DEMOVERSION nicht verfügbar","in DEMOVERSION nicht verfügbar","in DEMOVERSION nicht verfügbar","in DEMOVERSION nicht verfügbar","in DEMOVERSION nicht verfügbar","in DEMOVERSION nicht verfügbar","in DEMOVERSION nicht verfügbar"]
[4,null,"bei denen der Unternehmer im fremden Namen","die in engem Zusammenhang mit dem Grundstück"]
[5,null,"und für fremde Rechnung nach außen hin auftritt.","stehen (Bebauung, Verwertung, Nutzung oder"]
[6,null,"Der Vermittler erhält für den Abschluss eines","Unterhaltung des Grundstücks)."]
[7,null,"Geschäftes zwischen seinem Auftraggeber und"]
[8,null,"einem Dritten eine Provision.","Beispiele:"]
[9,null,null," - Grundstücksmakler, -vermittlung"]
[10,null,"Eine Vermittlungsleistung an einen Unternehmer"," - Grundstückssachverständige"]
[11,null,"wird (ausgenommen Grundstücksmakler) "," - Vermietung und Beherbergung"]
[12,null,"im Empfängerstaat ausgeführt (Generalklausel)."," - Einräumung von Rechten zur Grundstücksnutzung"]
[13,null,"Ab 2010 gibt es keine Sonderregelung mehr"," - Architektenleistungen"]
[14,null,"für die Vermittlung von Katalogleistungen."," - Bauaufsicht"]
[15,null,null," - Gebäudereparaturen"]
[16,null,"Eine Verschiebung des Leistungsortes durch UID"," - Gebäudereinigung"]
[17,null,"ist ab 2010 nicht mehr möglich."," - Wartung von Gebäudeteilen (Heizung, Lift etc.)"]
[18,null,null," - Beurkundung v. Grundstückskäufen"]
[19,null,"Steuerbefreiungen für Vermittlungsleistungen:"]
[20,null," - § 6 Abs. 1 Z. 5 UStG"]
[21,null," - § 6 Abs. 1 Z. 8 UStG","Ort der Grundstücksleistung = Grundstücksort"]
[22,null," - § 6 Abs. 1 Z. 13 UStG",null,null,null,null,"Unternehmer als die Veranstalter"]
[23]
[24,null,"§ 3a Abs. 6 UStG","§ 3a Abs. 9 UStG"]
[25,null,"UStR neu: Rz 639s","UStR neu: Rz 639v bis 640c"]

{"sheet":"Privatperson","index":22,"n_rows":31,"n_cols":5,"rows_kept":31,"cut":false,"hidden":false,"merged":[[7,4,8,4]]}
[]
[null,"Ort der sonstigen Leistung (§ 3a, Art 3a UStG)",null,3]
[]
[null,"... an NICHTUNTERNEHMER oder Privatperson"]
[]
[null,"Bitte auswählen (in DEMO nur Vermittlungs- und Grundstücksleistung verfügbar):"]
[null,null,{"$f":"VLOOKUP(1,HilfeP,$D$2+1)","v":"Grundstücksleistung"},null,"Leistungsort"]
[null,null,{"$f":"VLOOKUP(2,HilfeP,$D$2+1)","v":0},null,{"$f":"VLOOKUP(D2,LoesungP,3)","v":"Grundstücksort"}]
[null,null,{"$f":"VLOOKUP(3,HilfeP,$D$2+1)","v":"Grundstücksleistungen sind sonstige Leistungen,"}]
[null,null,{"$f":"VLOOKUP(4,HilfeP,$D$2+1)","v":"die in engem Zusammenhang mit dem Grundstück"},null,{"$f":"\"§ 3a Abs. \"&VLOOKUP(D2,LoesungP,4)&\" UStG\"","v":"§ 3a Abs. 9 UStG"}]
[null,null,{"$f":"VLOOKUP(5,HilfeP,$D$2+1)","v":"stehen (Bebauung, Verwertung, Nutzung oder"}]
[null,null,{"$f":"VLOOKUP(6,HilfeP,$D$2+1)","v":"Unterhaltung des Grundstücks)."}]
[null,null,{"$f":"VLOOKUP(7,HilfeP,$D$2+1)","v":0},null,"Hinweise, Besonderheiten, Ausnahmen"]
[null,null,{"$f":"VLOOKUP(8,HilfeP,$D$2+1)","v":"Beispiele:"},null,{"$f":"VLOOKUP($D$2,LoesungP,5)","v":"bei Besorgungsleistungen:"}]
[null,null,{"$f":"VLOOKUP(9,HilfeP,$D$2+1)","v":" - Grundstücksmakler, -vermittlung"},null,{"$f":"VLOOKUP($D$2,LoesungP,6)","v":"möglicher Anwendungsfall des § 23 UStG"}]
[null,null,{"$f":"VLOOKUP(10,HilfeP,$D$2+1)","v":" - Grundstückssachverständige"},null,{"$f":"VLOOKUP($D$2,LoesungP,7)","v":"(z.B. Hotelaufenthalte)"}]
[null,null,{"$f":"VLOOKUP(11,HilfeP,$D$2+1)","v":" - Vermietung und Beherbergung"},null,{"$f":"VLOOKUP($D$2,LoesungP,8)","v":0}]
[null,null,{"$f":"VLOOKUP(12,HilfeP,$D$2+1)","v":" - Einräumung von Rechten zur Grundstücksnutzung"},null,{"$f":"VLOOKUP($D$2,LoesungP,9)","v":0}]
[null,null,{"$f":"VLOOKUP(13,HilfeP,$D$2+1)","v":" - Architektenleistungen"},null,{"$f":"VLOOKUP($D$2,LoesungP,10)","v":0}]
[null,null,{"$f":"VLOOKUP(14,HilfeP,$D$2+1)","v":" - Bauaufsicht"},null,{"$f":"VLOOKUP($D$2,LoesungP,11)","v":0}]
[null,null,{"$f":"VLOOKUP(15,HilfeP,$D$2+1)","v":" - Gebäudereparaturen"},null,{"$f":"VLOOKUP($D$2,LoesungP,12)","v":0}]
[null,null,{"$f":"VLOOKUP(16,HilfeP,$D$2+1)","v":" - Gebäudereinigung"},null,{"$f":"VLOOKUP($D$2,LoesungP,13)","v":0}]
[null,null,{"$f":"VLOOKUP(17,HilfeP,$D$2+1)","v":" - Wartung von Gebäudeteilen (Heizung, Lift etc.)"},null,{"$f":"VLOOKUP($D$2,LoesungP,14)","v":0}]
[null,null,{"$f":"VLOOKUP(18,HilfeP,$D$2+1)","v":" - Beurkundung v. Grundstückskäufen"},null,{"$f":"VLOOKUP($D$2,LoesungP,15)","v":0}]
[null,null,{"$f":"VLOOKUP(19,HilfeP,$D$2+1)","v":0},null,{"$f":"VLOOKUP($D$2,LoesungP,16)","v":0}]
[null,null,{"$f":"VLOOKUP(20,HilfeP,$D$2+1)","v":0},null,{"$f":"VLOOKUP($D$2,LoesungP,17)","v":0}]
[null,null,{"$f":"VLOOKUP(21,HilfeP,$D$2+1)","v":0},null,{"$f":"VLOOKUP($D$2,LoesungP,18)","v":0}]
[null,null,{"$f":"VLOOKUP(22,HilfeP,$D$2+1)","v":"Ort der Grundstücksleistung = Grundstücksort"}]
[null,null,{"$f":"VLOOKUP(23,HilfeP,$D$2+1)","v":0},null,"Reverse Charge"]
[null,null,{"$f":"VLOOKUP(24,HilfeP,$D$2+1)","v":"§ 3a Abs. 9 UStG"},null,"wenn Leistender = ausl. Unternehmer, stpfl. Leistung"]
[null,null,{"$f":"VLOOKUP(25,HilfeP,$D$2+1)","v":"UStR neu: Rz 639v bis 640c"},null,"im Inland und Empfänger = Körperschaft öffentl. Rechts"]

{"sheet":"P2","index":23,"n_rows":26,"n_cols":16,"rows_kept":26,"cut":false,"hidden":false,"merged":[[15,2,15,4]]}
[null,null,null,null,null,null,null,null,null,null,null,null,null,7]
[null,null,"Vermittlungsleistung für Nichtunternehmer",null,null,null,null,null,false,"Steuerbefreiung = Wahr"]
[null,null,"(ausgenommen: Vermittlungsleistungen der Grundstücksmakler)"]
[]
[null,null,null,null,null,null,null,null,17,"Österreich"]
[null,null,"Leistender Unternehmer aus ...","Österreich","Anwender",null,null,null,10,{"$f":"VLOOKUP(I6,Laender,2)","v":"Irland"},{"$f":"VLOOKUP(I6,Laender,3)","v":"EU"}]
[null,null,"Auftraggeber Nichtunternehmer aus …",null,null,null,null,null,null,"(Leistungsempfänger)"]
[]
[null,null,null,null,null,null,null,null,null,null,null,null,null,"vermittelter Umsatz","Anmerkung","Ort"]
[null,null,"z.B.: Drittlandsexporten (nicht igL!), anderen echt steuerbefreiten Umsätzen (§ 6 Abs. 1 Z. 5 UStG)",null,null,null,null,null,null,null,null,null,1,"Warenverkauf","Ort der Lieferung bei bewegter Lieferung: Abgangsort der Ware; \nbei ruhender Lieferung: Ort der Verschaffung der Verfügungsmacht","idR Abgangsort der Ware"]
[null,null,"Krediten, Zahlungsmitteln, Forderungen, Wertpapieren, Gesellschaftsanteilen, Bürgschaften",null,null,null,null,null,null,null,null,null,2,"Grundstücksverkauf"," ","Grundstücksort"]
[null,null,"u.a. (§ 6 Abs. 1 Z. 8 UStG); Bausparverträgen, Versicherungsvertreter (§ 6 Abs. 1 Z 13 UStG)",null,null,null,null,null,null,null,null,null,3,"Grundstücksleistung","z.B. Grundstücksmakler, - sachverständige, Hotelbeherbergung, Vorbereitung oder Koordinierung von Bauleistungen, Vermietung von Grundstücken( § 3a Abs 9 UStG) ","Grundstücksort"]
[null,null,null,null,null,null,null,null,null,null,null,null,4,"Personenbeförderung","§ 3a Abs 10 UStG","Aufteilung (Streckenanteil)"]
[null,null,"Vermittelter Umsatz",null,null,null,null,null,null,null,null,null,5,"Innerg. Güterbeförderung","Abgangsort und Bestimmungsland in zwei verschiedenen EU-Staaten","Abgangsort"]
[null,null,null,null,null,null,null,null,null,null,null,null,6,"andere Güterbeförderung","z.B. innerstaatliche Güterbeförderung; Güterbeförderung von und ins Drittland","Aufteilung (Streckenanteil)"]
[null,null,{"$f":"VLOOKUP(N1,VermP,3)","v":"z.B. künstlerische, wissenschaftliche, unterrichtende, sportliche Leistungen, Leistungen izM Messen und Ausstellungen, Arbeiten an bewegl. körperlichen Gegenständen, Restaurant- und Verpflegungsdienstleistungen (§ 3a Abs 11 UStG)"},null,null,null,null,null,null,null,null,null,7,"Tätigkeitsortleistung","z.B. künstlerische, wissenschaftliche, unterrichtende, sportliche Leistungen, Leistungen izM Messen und Ausstellungen, Arbeiten an bewegl. körperlichen Gegenständen, Restaurant- und Verpflegungsdienstleistungen (§ 3a Abs 11 UStG)","Tätigkeitsort"]
[null,null,null,null,"Kz. UVA (bei Leistungsort im Inland)",null,null,null,{"$f":"IF(I2=TRUE,2,1)","v":1},"BMD Kontenplan (Erlöskonten)",null,null,8,"kurzfristige Vermietung v. Beförderungsmitteln","bis 30 Tage (Wasserfahrzeuge: bis 90 Tage)","Übergabeort"]
[null,null,"Ort der Leistung",{"$f":"VLOOKUP(N1,VermP,4)","v":"Tätigkeitsort"},{"$f":"\"000\"","v":"000"},null,null,null,1,"Erlöse 20%",{"$f":"VLOOKUP(1,_ekr4,2)","v":4120},null,9,"langfristige Vermietung v. Beförderungsmitteln","über 30 Tage (Wasserfahrzeuge: über 90 Tage)","Unternehmerort"]
[null,null,"Steuerpflichtig / steuerfrei",{"$f":"IF(I2=TRUE,\"steuerfrei\",\"steuerpflichtig\")","v":"steuerpflichtig"},{"$f":"IF(I2=TRUE,\"015/020\",\"022\")","v":"022"},null,null,null,2,"Erlöse 0% befreit",{"$f":"VLOOKUP(5,_ekr4,2)&\"/\"&VLOOKUP(8,_ekr4,2)","v":"4140/4140"},null,10,"Katalogleistung an Nichtunt. aus Drittland","z.B Urheberrechte, Werbung, Steuerberater, Rechtsanwälte, Dolmetscher, rechtliche / technische / wirtschaftliche Beratung, bestimmte EDV-Leistungen, elektronische Dienstleistungen, Vermietung bewegl. Sachen außer von Beförderungsmitteln (§ 3a Abs. 14 UStG)","Drittland"]
[null,null,"Reverse Charge, ZM","nein",{"$f":"IF(AND(K6=\"DR\",D20=\"ja\"),\"wenn im Drittland vorgesehen\",\"\")","v":""},null,null,null,3,"Erlöse sonstige Leistungen EU",4113,null,11,"andere sonstige Leistung"," ","Österreich"]
[null,null,"USt-Ausweis in der Rechnung",{"$f":"IF(D19=\"steuerpflichtig\",\"ja\",\"nein\")","v":"ja"},null,null,null,null,4,"grenzüberschreitende DL nicht steuerbar",4112,{"$f":"IF(I6=29,\"<<\",\"\")","v":""}]
[]
[null,null,{"$f":"VLOOKUP(I17,I18:K21,2)","v":"Erlöse 20%"},"Buchungsvorschlag",{"$f":"VLOOKUP(I17,I18:K21,3)","v":4120},null,null,null,{"$f":"IF(E21=\"ZM\",\" (Hinweis RCS)\",\"\")","v":""}]
[null,null,"Leistungsort Ausland: nicht steuerbar","Buchungsvorschlag",{"$f":"Kontenplan!B18","v":4100}]
[]
[null,null,null,null,null,null,null,null,false,"Steuerbefreiung = Wahr"]

{"sheet":"P3","index":24,"n_rows":23,"n_cols":12,"rows_kept":23,"cut":false,"hidden":false,"merged":[]}
[]
[null,null,"Grundstücksleistung für Nichtunternehmer",null,null,null,null,null,false,"Steuerbefreiung = Wahr"]
[null,null,"(einschließlich Vermittlungsleistungen der Grundstücksmakler)"]
[]
[null,null,null,null,null,null,null,null,17,"Österreich"]
[null,null,"Leistender Unternehmer aus ...","Österreich","Anwender",null,null,null,4,{"$f":"VLOOKUP(I6,Laender,2)","v":"Deutschland"},{"$f":"VLOOKUP(I6,Laender,3)","v":"EU"}]
[null,null,"Auftraggeber Nichtunternehmer aus …",null,null,null,null,null,null,"(Leistungsempfänger)"]
[]
[null,null,"Grundstücksort:  ",null,null,null,null,null,17,{"$f":"VLOOKUP(I9,Laender,2)","v":"Österreich"},{"$f":"VLOOKUP(I9,Laender,3)","v":"EU"}]
[null,null,null,null,null,null,null,null,null,"(Grundstücksort)"]
[]
[]
[]
[null,null,null,null,"Kz. UVA",null,null,null,{"$f":"IF(I9<>17,3,IF(D18=\"ja\",1,IF(AND(I9=17,I2=TRUE),2,\"?\")))","v":1},"BMD Kontenplan (Erlöskonten)"]
[null,null,"Ort der Leistung",{"$f":"J9","v":"Österreich"},{"$f":"IF(D15=\"Österreich\",\"000\",\" --\")","v":"000"},null,null,null,1,"Erlöse 20%, Mieterlöse u.a.",{"$f":"VLOOKUP(32,_ekr4,2)&\" u.a.\"","v":"4822 u.a."}]
[null,null,"Steuerpflichtig / steuerfrei",{"$f":"IF(I2=TRUE,\"steuerfrei\",\"steuerpflichtig\")","v":"steuerpflichtig"},{"$f":"IF(AND(E15=\"000\",D16=\"steuerfrei\"),\"020\",IF(AND(E15=\"000\",D16=\"steuerpflichtig\"),\"022\",\" --\"))","v":"022"},null,null,null,2,"Erlöse 0% unecht befreit",{"$f":"VLOOKUP(8,_ekr4,2)","v":4140}]
[null,null,"Reverse Charge, ZM","nein",{"$f":"IF(AND(I9<>17,D17=\"ja\"),\"wenn dort vorgesehen\",\"\")","v":""},null,null,null,3,"grenzüberschreitende DL nicht steuerbar",{"$f":"VLOOKUP(15,_ekr4,2)","v":4100}]
[null,null,{"$f":"\"USt-Ausweis in der Rechnung (\"&VLOOKUP(D15,Ustausweis,3)&\")\"","v":"USt-Ausweis in der Rechnung (österreichische)"},{"$f":"IF(I2=FALSE,\"ja\",\"nein\")","v":"ja"},null,null,null,null,null,null,null,{"$f":"IF(I6=29,\"<<\",\"\")","v":""}]
[]
[null,null,{"$f":"VLOOKUP($I$14,BMDU2,2)","v":"Erlöse 20%, Mieterlöse u.a."},"Buchungsvorschlag",{"$f":"VLOOKUP($I$14,BMDU2,3)","v":"4822 u.a."}]
[]
[]
[null,null,null,null,null,null,null,null,false,"Steuerbefreiung = Wahr"]

{"sheet":"Loesung P","index":25,"n_rows":16,"n_cols":18,"rows_kept":16,"cut":false,"hidden":false,"merged":[]}
[]
[null,"Leistung","Leistungsort","Abs.","Ausnahmen, Besonderheiten","A2","A3","A4","A5","A6","A7","A8","A9","A10","A11","A12","A13","A14"]
[1,"Besorgungsleistung","DEMOVERSION"]
[2,"Vermittlungsleistung","Ort des vermittelten Umsatzes",8,"Beispiele: Vermittlung einer(s)"," - Warenlieferung: Ort der Lieferung"," - Grundstücksverkaufes: Grundstücksort"," - Grundstücksleistung: Grundstücksort"," - Tätigkeitsortleistung: Tätigkeitsort"," - Katalogleistung an Privatperson EU:","       Unternehmerort (mit Ausnahmen)"," - Katalogleistung an Privatperson Drittland:","       Drittland"," - innergem. Güterbeförderung: Abgangsort"," - Kfz-Vermietung bis 30 Tage: Übergabeort"," - Kfz-Vermietung über 30 Tage:","      Unternehmerort des Vermieters","      ab 2013: Wohnsitz / Empfängerort des Mieters"]
[3,"Grundstücksleistung","Grundstücksort",9,"bei Besorgungsleistungen:","möglicher Anwendungsfall des § 23 UStG","(z.B. Hotelaufenthalte)"]
[4,"Personenbeförderung","DEMOVERSION"]
[5,"Güterbeförderung","DEMOVERSION"]
[6,"Kultur etc.","DEMOVERSION"]
[7,"Messen","DEMOVERSION"]
[8,"Restaurant","DEMOVERSION"]
[9,"Warenumschlag, Lagerung","DEMOVERSION"]
[10,"Arbeiten an bewegl. körperl. Sachen","DEMOVERSION"]
[11,"Kurzfr. Vermietung Kfz","DEMOVERSION"]
[12,"Langfr. Vermietung Kfz","DEMOVERSION"]
[13,"Katalogleistung","DEMOVERSION"]
[14,"andere","DEMOVERSION"]

{"sheet":"Hilfe P","index":26,"n_rows":25,"n_cols":15,"rows_kept":25,"cut":false,"hidden":false,"merged":[]}
[1,"Besorgungsleistung","Vermittlungsleistung","Grundstücksleistung","Personenbeförderung","Güterbeförderung","Kultur, Künstler, Wissenschaft, Unterricht,","Messen und Ausstellungen","Restaurant und Verpflegung","Warenumschlag, Lagerung","Arbeiten an bewegl. körperl. Sachen","Kurzfristige Vermietung von Beförderungsmitteln","Langfristige Vermietung von Beförderungsmitteln","Katalogleistung","Andere sonstige Leistung"]
[2,null,null,null,null,null,"Sport, Unterhaltung"]
[3,"DEMOVERSION, Details sind nur in","Vermittlungsleistungen sind sonstige Leistungen,","Grundstücksleistungen sind sonstige Leistungen,","DEMOVERSION, Details sind nur in","DEMOVERSION, Details sind nur in","DEMOVERSION, Details sind nur in","DEMOVERSION, Details sind nur in","DEMOVERSION, Details sind nur in","DEMOVERSION, Details sind nur in","DEMOVERSION, Details sind nur in","DEMOVERSION, Details sind nur in","DEMOVERSION, Details sind nur in","DEMOVERSION, Details sind nur in","DEMOVERSION, Details sind nur in"]
[4,"der Vollversion verfügbar","bei denen der Unternehmer im fremden Namen","die in engem Zusammenhang mit dem Grundstück","der Vollversion verfügbar","der Vollversion verfügbar","der Vollversion verfügbar","der Vollversion verfügbar","der Vollversion verfügbar","der Vollversion verfügbar","der Vollversion verfügbar","der Vollversion verfügbar","der Vollversion verfügbar","der Vollversion verfügbar","der Vollversion verfügbar"]
[5,null,"und für fremde Rechnung nach außen hin auftritt.","stehen (Bebauung, Verwertung, Nutzung oder"]
[6,null,"Der Vermittler erhält für den Abschluss eines","Unterhaltung des Grundstücks)."]
[7,null,"Geschäftes zwischen seinem Auftraggeber und"]
[8,null,"einem Dritten eine Provision.","Beispiele:"]
[9,null,null," - Grundstücksmakler, -vermittlung"]
[10,null,"Eine Vermittlungsleistung an Nichtunternehmer"," - Grundstückssachverständige"]
[11,null,"wird an dem Ort erbracht, an dem der"," - Vermietung und Beherbergung"]
[12,null,"vermittelte Umsatz ausgeführt wird."," - Einräumung von Rechten zur Grundstücksnutzung"]
[13,null,null," - Architektenleistungen"]
[14,null,"Die Leistungen der Grundstücksmakler"," - Bauaufsicht"]
[15,null,"fallen unter die Grundstücksleistungen."," - Gebäudereparaturen"]
[16,null,null," - Gebäudereinigung"]
[17,null,"Steuerbefreiungen für Vermittlungsleistungen:"," - Wartung von Gebäudeteilen (Heizung, Lift etc.)"]
[18,null," - § 6 Abs. 1 Z. 5 UStG"," - Beurkundung v. Grundstückskäufen"]
[19,null," - § 6 Abs. 1 Z. 8 UStG"]
[20,null," - § 6 Abs. 1 Z. 13 UStG"]
[21]
[22,null,null,"Ort der Grundstücksleistung = Grundstücksort"]
[23]
[24,null,"§ 3a Abs. 6 UStG","§ 3a Abs. 9 UStG"]
[25,null,"UStR neu: Rz 639s","UStR neu: Rz 639v bis 640c"]

{"sheet":"§ 3a UStG alt","index":27,"n_rows":0,"n_cols":0,"rows_kept":0,"cut":false,"hidden":false,"merged":[]}

{"sheet":"§ 3a UStG ab 2010","index":28,"n_rows":0,"n_cols":0,"rows_kept":0,"cut":false,"hidden":false,"merged":[]}

{"sheet":"Reversecharge","index":29,"n_rows":38,"n_cols":2,"rows_kept":38,"cut":false,"hidden":false,"merged":[]}
[null,"Reverse Charge  / Übergang der Steuerschuld"]
[null,"(§ 19 Abs. 1 zweiter Satz UStG)"]
[]
[null,"Unter folgenden Voraussetzungen geht die Steuerschuld auf den"]
[null,"Leistungsempfänger (Auftraggeber) über:"]
[]
[null,"1) Leistender = ausländischer Unternehmer (kein Sitz, Wohnsitz, gewöhnl. Aufenthalt oder Betriebsstätte in Österreich)"]
[null,"2) Leistungsempfänger = Unternehmer,  K.Ö.R. oder juristische Person mit UID"]
[null,"3) steuerpflichtige Werklieferung, -leistung oder sonstige Leistung in Österreich"]
[]
[null,"Ab 1.1.2010 kommt es auch dann zum Reverse Charge, wenn der leistende ausländische Unternehmer zwar eine"]
[null,"Betriebsstätte in Österreich hat, diese aber an der Leistungserbringung nicht beteiligt ist."]
[]
[null,"Das Reverse Charge ist auch anwendbar im Verhältnis zu Drittstaaten!"]
[null,"Leistungsempfänger kann auch ein anderer ausländischer Unternehmer oder ausl. jur. Person sein"]
[]
[null,"Anwendungsfälle:"]
[null,"   - alle sonstigen Leistungen (einschließlich Werkleistungen)"]
[null,"   - Werklieferungen"]
[null,"Ausnahmen: Duldung der Benützung von Bundesstraßen und (ab 1.1.2012) Eintrittsberechtigungen"]
[]
[null,"UStR: siehe Rz 2601 ff"]
[]
[null,"Achtung: Das Reverse Charge ist EU- und weltweit nicht harmonisiert, es kann in einzelnen Ländern"]
[null,"diesbezüglich unterschiedliche Vorschriften geben. Zu empfehlen ist bei Leistungsorten im Ausland"]
[null,"im Zweifel die Kontaktierung des dortigen Leistungsempfängers zur Klärung der nationalen Vorschriften."]
[]
[null,"Ein weiterer Fall des Reverse Charge ist bei Dreiecksgeschäften gem. Art. 25 Abs. 5 UStG vorgesehen."]
[null,"Bei anderen in Österreich steuerbaren und steuerpflichtigen Lieferungen ausländischer Unternehmer an andere Unternehmer"]
[null,"oder juristische Personen öff. Rechts ist an Stelle des \"Reverse Charge\" die Haftung gem. § 27 Abs. 4 UStG zu beachten"]
[null,"(Einbehaltung der österr. USt durch Abnehmer und Abfuhr (i.d.R.) ans Finanzamt Graz Stadt)."]
[]
[null,"In den Fällen des Reverse Charge darf keine USt in der Rechnung ausgewiesen werden."]
[null,"Stattdessen ist auf den Übergang der Steuerschuld hinzuweisen. Beim Hinweis handelt es sich"]
[null,"jedoch um eine bloße Formvorschrift, d.h. bei Vorliegen der Voraussetzungen: zwingend R.C. (auch ohne Re.-Hinweis)"]
[null,"Ein Vorsteuerabzug einer zu Unrecht gesondert ausgewiesenen USt in Fällen des R.C. ist unzulässig."]
[]
[null,"Gesetzestexte:"]

{"sheet":"Par 19 Abs 1","index":30,"n_rows":0,"n_cols":0,"rows_kept":0,"cut":false,"hidden":false,"merged":[]}

{"sheet":"Par 19 Abs 1 alt","index":31,"n_rows":0,"n_cols":0,"rows_kept":0,"cut":false,"hidden":false,"merged":[]}

{"sheet":"Par 6","index":32,"n_rows":0,"n_cols":0,"rows_kept":0,"cut":false,"hidden":false,"merged":[]}

{"sheet":"Par 7","index":33,"n_rows":0,"n_cols":0,"rows_kept":0,"cut":false,"hidden":false,"merged":[]}

{"sheet":"Par 8","index":34,"n_rows":0,"n_cols":0,"rows_kept":0,"cut":false,"hidden":false,"merged":[]}

{"sheet":"Art 1","index":35,"n_rows":0,"n_cols":0,"rows_kept":0,"cut":false,"hidden":false,"merged":[]}

{"sheet":"Art 7","index":36,"n_rows":0,"n_cols":0,"rows_kept":0,"cut":false,"hidden":false,"merged":[]}

{"sheet":"Par 23","index":37,"n_rows":52,"n_cols":1,"rows_kept":52,"cut":false,"hidden":false,"merged":[]}
["                                         § 23 UStG"]
[]
["                     Besteuerung von Reiseleistungen"]
[]
["§ 23. (1) Die nachfolgenden Vorschriften gelten für Reiseleistungen"]
["eines Unternehmers,"]
[]
[" - die nicht für das Unternehmen des Leistungsempfängers bestimmt sind,"]
[" - soweit der Unternehmer dabei gegenüber dem Leistungsempfänger im "]
["   eigenen Namen auftritt und"]
[" - Reisevorleistungen in Anspruch nimmt."]
[]
["(2) Die Leistung des Unternehmers ist als sonstige Leistung anzusehen."]
["Erbringt der Unternehmer an einen Leistungsempfänger im Rahmen einer Reise"]
["mehrere Leistungen dieser Art, so gelten sie als eine einheitliche sonstige Leistung."]
[]
["(3) Der Ort der sonstigen Leistung bestimmt sich nach § 3a Abs 7."]
[]
["(4) Reisevorleistungen sind Lieferungen und sonstige Leistungen Dritter,"]
["die den Reisenden unmittelbar zugute kommen."]
[]
["(5) Die sonstige Leistung ist steuerfrei, wenn die Reisevorleistungen im"]
["Drittlandsgebiet bewirkt werden."]
[]
["(6) Sind die Reisevorleistungen nur zum Teil Reisevorleistungen im Sinne des"]
["Abs. 5, so ist nur der Teil der sonstigen Leistung steuerfrei, dem die im Abs. 5"]
["bezeichneten Reisevorleistungen zuzurechnen sind. Die Voraussetzungen der"]
["Steuerbefreiung müssen vom Unternehmer buchmäßig nachgewiesen sein. Der"]
["Bundesminister für Finanzen kann aus Vereinfachungsgründen bei Schiffs- und"]
["Flugreisen durch Verordnung bestimmen, wie der auf das Drittlandsgebiet"]
["entfallende Teil der Reisevorleistung zu ermitteln ist."]
[]
["(7) Die sonstige Leistung bemisst sich nach dem Unterschied zwischen dem"]
["Betrag, den der Leistungsempfänger aufwendet, um die Leistung zu erhalten und"]
["dem Betrag, den der Unternehmer für die Reisevorleistungen aufwendet. Die"]
["Umsatzsteuer gehört nicht zur Bemessungsgrundlage."]
["Der Unternehmer kann die Bemessungsgrundlage statt für jede einzelne Leistung"]
["entweder für Gruppen von Leistungen oder für die gesamten innerhalb des"]
["Veranlagungszeitraumes (Voranmeldungszeitraumes) erbrachten Leistungen ermitteln."]
[]
["(8) Abweichend von § 12 Abs. 1 ist der Unternehmer nicht berechtigt, die ihm"]
["für die Reisevorleistungen gesondert in Rechnung gestellten Steuerbeträge als"]
["Vorsteuer abzuziehen. Im übrigen bleibt § 12 unberührt."]
[]
["(9) Für die sonstigen Leistungen gilt § 18 mit der Maßgabe, daß aus"]
["den Aufzeichnungen des Unternehmers zu ersehen sein müssen:"]
[]
["1. der Betrag, den der Leistungsempfänger für die Leistung aufwendet"]
["2. die Beträge, die der Unternehmer für die Reisevorleistungen aufwendet"]
["3. die Bemessungsgrundlage nach Abs. 7 und"]
["4. wie sich die in § 1 und 2 bezeichneten Beträge und die Bemessungsgrundlage"]
["    nach Abs. 7 auf steuerpflichtige und steuerfreie Leistungen verteilen. "]

{"sheet":"Par 13b dUStG","index":38,"n_rows":0,"n_cols":0,"rows_kept":0,"cut":false,"hidden":false,"merged":[]}

{"sheet":"Kundenstock","index":39,"n_rows":0,"n_cols":0,"rows_kept":0,"cut":false,"hidden":false,"merged":[]}

{"sheet":"Beispiele","index":40,"n_rows":701,"n_cols":13,"rows_kept":701,"cut":false,"hidden":false,"merged":[]}
[null,"Beispielsammlung","Liste kann beliebig ergänzt werden; Eintrag bitte am Ende, dann [Liste alph. sortieren]",null,null,null,"Nr.",null,null,null,null,{"$f":"C7","v":"Tätigkeitsort"},{"$f":"VLOOKUP(L1,L3:M12,2)","v":8}]
[null,null,"Stand: 1.1.2012; Irrtümer vorbehalten"]
[null,"ß","Bitte auswählen",null,null,null,1,null,null,null,null,"Besorgungsleistung",1]
[null,"Sonstige Leistung","Einstufung bis 2009","Einstufung ab 2010\n(für Auswahl in Programm)","UStR alt (Rz...)","UStR neu (Rz...)","Anmerkung",null,null,null,null,"Generalklausel",2]
[null,"Abbruch von Gebäuden","Grundstücksleistung","Grundstücksleistung",521,null,null,null,null,null,null,"Grundstücksleistung",3]
[null,"Abschleppdienste Kfz",null,"Generalklausel",null,"641m"]
[114,"Arbeiten an beweglichen Sachen","Tätigkeitsort","Arbeiten an bewegl. körperl. Sachen",553,"639f, 641c,d",null,null,null,null,null,"Güterbeförderung",4]
[null,"Architekten","Grundstücksleistung","Grundstücksleistung",521,"640a",null,null,null,null,null,"Katalogleistung",5]
[null,"Ärzte","Generalklausel","Generalklausel",630,"639p",null,null,null,null,null,"Ort der Nutzung",6]
[null,"Auf- / Abbau von Messeständen","Grundstücksleistung","Messen und Ausstellungen",528,"640y",null,null,null,null,null,"Personenbeförderung",7]
[null,"Bauaufsicht","Grundstücksleistung","Grundstücksleistung",521,"640a",null,null,null,null,null,"Tätigkeitsort",8]
[null,"Bauingenieure","Grundstücksleistung","Grundstücksleistung",521,"640a",null,null,null,null,null,"Vermittlungsleistung",9]
[null,"Bauträger","Grundstücksleistung","Grundstücksleistung",null,"640a"]
[null,"Begutachtung bewegl. Sachen","Tätigkeitsort","Arbeiten an bewegl. körperl. Sachen",553,"641d"]
[null,"Begutachtung unbewegl. Sachen","Grundstücksleistung","Grundstücksleistung",null,"640a"]
[null,"Beherbergung","Grundstücksleistung","Grundstücksleistung",518,"639x"]
[null,"Bereitstellung von Websites","Katalogleistung","Katalogleistung",604,"642o"]
[null,"Bergung von Autos","Generalklausel","Generalklausel",634,"641m"]
[null,"…….."]
[null,"Leistungen A-Z in Vollversion (Stand 1.1.2013)"]
[]
[]
[]
[]
[]
[]
[]
[]
[]
[]
[]
[]
[]
[]
[]
[]
[]
[]
[]
[]
[]
[]
[]
[]
[]
[]
[]
[]
[]
[]
[]
[]
[]
[]
[]
[]
[]
[]
[]
[]
[]
[]
[]
[]
[]
[]
[]
[]
[]
[]
[]
[]
[]
[]
[]
[]
[]
[]
[]
[]
[]
[]
[]
[]
[]
[]
[]
[]
[]
[]
[]
[]
[]
[]
[]
[]
[]
[]
[]
[]
[]
[]
[]
[]
[]
[]
[]
[]
[]
[]
[]
[]
[]
[]
[]
[]
[]
[]
[]
[]
[]
[]
[]
[]
[]
[]
[]
[]
[]
[]
[]
[]
[]
[]
[]
[]
[]
[]
[]
[]
[]
[]
[]
[]
[]
[]
[]
[]
[]
[]
[]
[]
[]
[]
[]
[]
[]
[]
[]
[]
[]
[]
[]
[]
[]
[]
[]
[]
[]
[]
[]
[]
[]
[]
[]
[]
[]
[]
[]
[]
[]
[]
[]
[]
[]
[]
[]
[]
[]
[]
[]
[]
[]
[]
[]
[]
[]
[]
[]
[]
[]
[]
[]
[]
[]
[]
[]
[]
[]
[]
[]
[]
[]
[]
[]
[]
[]
[]
[]
[]
[]
[]
[]
[]
[]
[]
[]
[]
[]
[]
[]
[]
[]
[]
[]
[]
[]
[]
[]
[]
[]
[]
[]
[]
[]
[]
[]
[]
[]
[]
[]
[]
[]
[]
[]
[]
[]
[]
[]
[]
[]
[]
[]
[]
[]
[]
[]
[]
[]
[]
[]
[]
[]
[]
[]
[]
[]
[]
[]
[]
[]
[]
[]
[]
[]
[]
[]
[]
[]
[]
[]
[]
[]
[]
[]
[]
[]
[]
[]
[]
[]
[]
[]
[]
[]
[]
[]
[]
[]
[]
[]
[]
[]
[]
[]
[]
[]
[]
[]
[]
[]
[]
[]
[]
[]
[]
[]
[]
[]
[]
[]
[]
[]
[]
[]
[]
[]
[]
[]
[]
[]
[]
[]
[]
[]
[]
[]
[]
[]
[]
[]
[]
[]
[]
[]
[]
[]
[]
[]
[]
[]
[]
[]
[]
[]
[]
[]
[]
[]
[]
[]
[]
[]
[]
[]
[]
[]
[]
[]
[]
[]
[]
[]
[]
[]
[]
[]
[]
[]
[]
[]
[]
[]
[]
[]
[]
[]
[]
[]
[]
[]
[]
[]
[]
[]
[]
[]
[]
[]
[]
[]
[]
[]
[]
[]
[]
[]
[]
[]
[]
[]
[]
[]
[]
[]
[]
[]
[]
[]
[]
[]
[]
[]
[]
[]
[]
[]
[]
[]
[]
[]
[]
[]
[]
[]
[]
[]
[]
[]
[]
[]
[]
[]
[]
[]
[]
[]
[]
[]
[]
[]
[]
[]
[]
[]
[]
[]
[]
[]
[]
[]
[]
[]
[]
[]
[]
[]
[]
[]
[]
[]
[]
[]
[]
[]
[]
[]
[]
[]
[]
[]
[]
[]
[]
[]
[]
[]
[]
[]
[]
[]
[]
[]
[]
[]
[]
[]
[]
[]
[]
[]
[]
[]
[]
[]
[]
[]
[]
[]
[]
[]
[]
[]
[]
[]
[]
[]
[]
[]
[]
[]
[]
[]
[]
[]
[]
[]
[]
[]
[]
[]
[]
[]
[]
[]
[]
[]
[]
[]
[]
[]
[]
[]
[]
[]
[]
[]
[]
[]
[]
[]
[]
[]
[]
[]
[]
[]
[]
[]
[]
[]
[]
[]
[]
[]
[]
[]
[]
[]
[]
[]
[]
[]
[]
[]
[]
[]
[]
[]
[]
[]
[]
[]
[]
[]
[]
[]
[]
[]
[]
[]
[]
[]
[]
[]
[]
[]
[]
[]
[]
[]
[]
[]
[]
[]
[]
[]
[]
[]
[]
[]
[]
[]
[]
[]
[]
[]
[]
[]
[]
[]
[]
[]
[]
[]
[]
[]
[]
[]
[]
[]
[]
[]
[]
[]
[]
[]
[]
[]
[]
[]
[]
[]
[]
[]
[]
[]
[]
[]
[]
[]
[]
[]
[]
[]
[]
[]
[]
[]
[]
[]
[]
[]
[]
[]
[]
[]
[]
[]
[]
[]
[]
[]
[]
[]
[]
[]
[]
[]
[]
[]
[]
[]
[]
[]
[]
[]
[]
[]
[]
[null,"Ende der Datenbank"]

{"sheet":"Archivierung","index":41,"n_rows":0,"n_cols":0,"rows_kept":0,"cut":false,"hidden":false,"merged":[]}

{"sheet":"ERechnung","index":42,"n_rows":0,"n_cols":0,"rows_kept":0,"cut":false,"hidden":false,"merged":[]}

{"sheet":"Eintritt2","index":43,"n_rows":0,"n_cols":0,"rows_kept":0,"cut":false,"hidden":false,"merged":[]}